Workbook

Sheet Project_Input
B2: Project Input
B3: 1 | C3: =B3+1 -> 2 | D3: =C3+1 -> 3 | E3: 4 | F3: 5 | G3: 6 | H3: 7 | I3: 8 | J3: 9 | K3: 10 | L3: 11 | M3: =L3+1 -> 12 | N3: =M3+1 -> 13 | O3: =N3+1 -> 14 | P3: =O3+1 -> 15 | Q3: =P3+1 -> 16 | R3: =Q3+1 -> 17 | S3: =R3+1 -> 18 | T3: =S3+1 -> 19 | U3: =T3+1 -> 20 | V3: =U3+1 -> 21 | W3: =V3+1 -> 22 | X3: =W3+1 -> 23 | Y3: =X3+1 -> 24 | Z3: =Y3+1 -> 25 | AA3: =Z3+1 -> 26 | AB3: =AA3+1 -> 27 | AC3: =AB3+1 -> 28 | AD3: =AC3+1 -> 29 | AE3: =AD3+1 -> 30 | AF3: =AE3+1 -> 31 | AG3: =AF3+1 -> 32 | AH3: =AG3+1 -> 33 | AI3: =AH3+1 -> 34 | AJ3: =AI3+1 -> 35 | AK3: =AJ3+1 -> 36 | AL3: =AK3+1 -> 37 | AM3: =AL3+1 -> 38 | AN3: =AM3+1 -> 39 | AO3: =AN3+1 -> 40 | AP3: =AO3+1 -> 41 | AQ3: =AP3+1 -> 42 | AR3: =AQ3+1 -> 43 | AS3: =AR3+1 -> 44 | AT3: =AS3+1 -> 45 | AU3: =AT3+1 -> 46 | AV3: =AU3+1 -> 47 | AW3: 48 | AX3: 49 | AY3: 50
B4: Index | C4: Stream | D4: WR Description | E4: Manager | F4: DNSP | G4: Capex Input | M4: O&M | N4: Benefit Claim Ramping Up (% from 2026 to 2030) | S4: Additional Benefit Claim Period (No of Year beyond 2030) | T4: Value of Customer Reliability (VCR) (Reliability) | Y4: Financial | AF4: Safety | AL4: Environmental | AS4: Other Inputs
G5: 2026 | H5: =G5+1 -> 2027 | I5: =H5+1 -> 2028 | J5: 2029 | K5: 2030 | L5: Total | M5: As % of Capex | N5: 2026 | O5: =N5+1 -> 2027 | P5: =O5+1 -> 2028 | Q5: =P5+1 -> 2029 | R5: =Q5+1 -> 2030 | T5: Yes/No | U5: Average Load (KWh) | V5: Outage Duration (Hours Per Year) | W5: Frequency of Event (%) | X5: Comments | Y5: Yes/No | Z5: Labour Saving ($/Per Year) | AA5: Material Saving ($/Per Year) | AB5: Other Saving ($/Per Year) | AC5: Equipment Replacement Cost | AD5: Probability of Failure of Equipment (%) | AE5: Comments | AF5: Yes/No | AG5: Probability of Fatality (%) | AH5: Cost of Fatality ($) | AI5: Probability of Enjury (%) | AJ5: Cost of Enjury ($) | AK5: Comments | AL5: Yes/No | AM5: Probability of Bushfire/Flood (%) | AN5: Bushfire/Flood Cost($) | AO5: Probability of Oil Spilt (%) | AP5: Cost of Oil Split ($) | AQ5: Carbon Reduction (in MWh) | AR5: Comments
B6: 1 | D6: Ergon AER Response | T6: No | Y6: No | AL6: No
B7: =B6+1 -> 2 | C7: OT | D7: Server & Workstation_ERG_1829387 | F7: ERG | G7: 3620640 | H7: 508517 | I7: 0 | J7: 0 | K7: 0 | L7: =SUM(G7:K7) -> 4129157 | M7: 0.002804446295 | N7: 0.4738881699 | O7: 0.8959569464 | P7: 0.9298589106 | Q7: 0.9646714439 | R7: 1 | S7: 6 | T7: Yes | U7: 2000 | V7: 1 | W7: 1 | Y7: Yes | AB7: =384543.874628548*1 -> 384543.8746 | AL7: No
B8: =B7+1 -> 3 | C8: OT | D8: STOR BACKUP_ERG_1829388 | F8: ERG | I8: 752283.9596 | J8: 310726.1252 | K8: 214505.1822 | L8: 1277515.267 | M8: =7.62263168415946%*2 -> 0.1524526337 | N8: 0.7413116632 | O8: 0.8470166525 | P8: 0.8968890049 | Q8: 0.9480905966 | R8: 1 | S8: 5 | T8: Yes | U8: 2000 | V8: 2 | W8: 1 | Y8: Yes | AB8: =245310.527011228*1 -> 245310.527 | AL8: No
B9: 4 | C9: OT | D9: Zetron Combined ERG (opt1) - Sept 2024 | F9: ERG | G9: 125000 | H9: 125000 | I9: 125000 | J9: 4255912.369 | K9: 125000 | L9: 4755912.369 | M9: 0.0641 | N9: 0.02117475071 | O9: 0.6598771276 | P9: 0.73597803 | Q9: 0.8520373992 | R9: 1 | S9: 10 | T9: Yes | U9: 3000 | V9: 2.5 | W9: 1 | Y9: Yes | AB9: 519929.6157 | AL9: No
B10: 5
B11: 6
B12: 7
B13: 8
B14: 9
B15: 10
B16: 11
B17: 12
B18: 13
B19: 14
B20: 15
B21: 16
B22: 17
B23: 18
B24: 19
B25: 20
B26: 21
B27: 22
B28: 23
B29: 24
B30: 25
B31: 26
B32: 27
B33: 28
B34: 29
B35: 30
B36: 31
B37: 32
B38: 33
B39: 34
B40: 35
B41: 36
B42: 37

Sheet DCF
B1: Discounted Cashflow Analysis | C1: All $ in Real AUD2022
B3: Project Inedx | C3: 2 | E3: Capex | J3: O&M | K3: Benefit Claim Ramping Up (%) | P3: Benefit Claim Period (No of Year) | Q3: =Project_Input!T4 -> Value of Customer Reliability (VCR) (Reliability) | U3: =Project_Input!Y4 -> Financial | AA3: =Project_Input!AF4 -> Safety | AF3: =Project_Input!AL4 -> Environmental
B4: WR Description | C4: =VLOOKUP(Index_1,Project_Table,Project_Input!$D$3,FALSE) -> Server & Workstation_ERG_1829387 | E4: 2026 | F4: 2027 | G4: 2028 | H4: 2029 | I4: 2030 | J4: As % of Capex | K4: 2026 | L4: =K4+1 -> 2027 | M4: =L4+1 -> 2028 | N4: 2029 | O4: 2030 | Q4: =Project_Input!T5 -> Yes/No | R4: =Project_Input!U5 -> Average Load (KWh) | S4: =Project_Input!V5 -> Outage Duration (Hours Per Year) | T4: =Project_Input!W5 -> Frequency of Event (%) | U4: =Project_Input!Y5 -> Yes/No | V4: =Project_Input!Z5 -> Labour Saving ($/Per Year) | W4: =Project_Input!AA5 -> Material Saving ($/Per Year) | X4: =Project_Input!AB5 -> Other Saving ($/Per Year) | Y4: =Project_Input!AC5 -> Equipment Replacement Cost | Z4: =Project_Input!AD5 -> Probability of Failure of Equipment (%) | AA4: =Project_Input!AF5 -> Yes/No | AB4: =Project_Input!AG5 -> Probability of Fatality (%) | AC4: =Project_Input!AH5 -> Cost of Fatality ($) | AD4: =Project_Input!AI5 -> Probability of Enjury (%) | AE4: =Project_Input!AJ5 -> Cost of Enjury ($) | AF4: =Project_Input!AL5 -> Yes/No | AG4: =Project_Input!AM5 -> Probability of Bushfire/Flood (%) | AH4: =Project_Input!AN5 -> Bushfire/Flood Cost($) | AI4: =Project_Input!AO5 -> Probability of Oil Spilt (%) | AJ4: =Project_Input!AP5 -> Cost of Oil Split ($) | AK4: =Project_Input!AQ5 -> Carbon Reduction (in MWh)
B5: DNSP | C5: =VLOOKUP(Index_1,Project_Table,Project_Input!$F$3,FALSE) -> ERG | E5: =VLOOKUP(Index_1,Project_Table,Project_Input!G3,FALSE) -> 3620640 | F5: =VLOOKUP(Index_1,Project_Table,Project_Input!H3,FALSE) -> 508517 | G5: =VLOOKUP(Index_1,Project_Table,Project_Input!I3,FALSE) -> 0 | H5: =VLOOKUP(Index_1,Project_Table,Project_Input!J3,FALSE) -> 0 | I5: =VLOOKUP(Index_1,Project_Table,Project_Input!K3,FALSE) -> 0 | J5: =VLOOKUP(Index_1,Project_Table,Project_Input!M3,FALSE) -> 0.002804446295 | K5: =VLOOKUP(Index_1,Project_Table,Project_Input!N3,FALSE) -> 0.4738881699 | L5: =VLOOKUP(Index_1,Project_Table,Project_Input!O3,FALSE) -> 0.8959569464 | M5: =VLOOKUP(Index_1,Project_Table,Project_Input!P3,FALSE) -> 0.9298589106 | N5: =VLOOKUP(Index_1,Project_Table,Project_Input!Q3,FALSE) -> 0.9646714439 | O5: =VLOOKUP(Index_1,Project_Table,Project_Input!R3,FALSE) -> 1 | P5: =VLOOKUP(Index_1,Project_Table,Project_Input!S3,FALSE) -> 6 | Q5: =VLOOKUP(Index_1,Project_Table,Project_Input!T3,FALSE) -> Yes | R5: =VLOOKUP(Index_1,Project_Table,Project_Input!U3,FALSE) -> 2000 | S5: =VLOOKUP(Index_1,Project_Table,Project_Input!V3,FALSE) -> 1 | T5: =VLOOKUP(Index_1,Project_Table,Project_Input!W3,FALSE) -> 1 | U5: =VLOOKUP(Index_1,Project_Table,Project_Input!Y3,FALSE) -> Yes | V5: =VLOOKUP(Index_1,Project_Table,Project_Input!Z3,FALSE) -> 0 | W5: =VLOOKUP(Index_1,Project_Table,Project_Input!AA3,FALSE) -> 0 | X5: =VLOOKUP(Index_1,Project_Table,Project_Input!AB3,FALSE) -> 384543.8746 | Y5: =VLOOKUP(Index_1,Project_Table,Project_Input!AC3,FALSE) -> 0 | Z5: =VLOOKUP(Index_1,Project_Table,Project_Input!AD3,FALSE) -> 0 | AA5: =VLOOKUP(Index_1,Project_Table,Project_Input!AF3,FALSE) -> 0 | AB5: =VLOOKUP(Index_1,Project_Table,Project_Input!AG3,FALSE) -> 0 | AC5: =VLOOKUP(Index_1,Project_Table,Project_Input!AH3,FALSE) -> 0 | AD5: =VLOOKUP(Index_1,Project_Table,Project_Input!AI3,FALSE) -> 0 | AE5: =VLOOKUP(Index_1,Project_Table,Project_Input!AJ3,FALSE) -> 0 | AF5: =VLOOKUP(Index_1,Project_Table,Project_Input!AL3,FALSE) -> No | AG5: =VLOOKUP(Index_1,Project_Table,Project_Input!AM3,FALSE) -> 0 | AH5: =VLOOKUP(Index_1,Project_Table,Project_Input!AN3,FALSE) -> 0 | AI5: =VLOOKUP(Index_1,Project_Table,Project_Input!AO3,FALSE) -> 0 | AJ5: =VLOOKUP(Index_1,Project_Table,Project_Input!AP3,FALSE) -> 0 | AK5: =VLOOKUP(Index_1,Project_Table,Project_Input!AQ3,FALSE) -> 0
B7: Year Index | E7: 0 | F7: 1 | G7: =F7+1 -> 2 | H7: =G7+1 -> 3 | I7: 4 | J7: 5 | K7: 6 | L7: 7 | M7: 8 | N7: 9 | O7: 10 | P7: 11 | Q7: 12 | R7: 13 | S7: 14 | T7: 15 | U7: 16 | V7: 17 | W7: 18 | X7: 19 | Y7: 20 | Z7: =Y7+1 -> 21 | AA7: =Z7+1 -> 22 | AB7: =AA7+1 -> 23 | AC7: =AB7+1 -> 24 | AD7: =AC7+1 -> 25 | AE7: =AD7+1 -> 26 | AF7: =AE7+1 -> 27 | AG7: =AF7+1 -> 28 | AH7: =AG7+1 -> 29 | AI7: =AH7+1 -> 30 | AJ7: =AI7+1 -> 31 | AK7: =AJ7+1 -> 32 | AL7: =AK7+1 -> 33 | AM7: =AL7+1 -> 34 | AN7: =AM7+1 -> 35 | AO7: =AN7+1 -> 36 | AP7: =AO7+1 -> 37 | AQ7: =AP7+1 -> 38 | AR7: =AQ7+1 -> 39 | AS7: =AR7+1 -> 40 | AT7: =AS7+1 -> 41 | AU7: =AT7+1 -> 42 | AV7: =AU7+1 -> 43 | AW7: =AV7+1 -> 44 | AX7: =AW7+1 -> 45 | AY7: =AX7+1 -> 46 | AZ7: =AY7+1 -> 47 | BA7: =AZ7+1 -> 48 | BB7: =BA7+1 -> 49 | BC7: =BB7+1 -> 50 | BD7: =BC7+1 -> 51 | BE7: =BD7+1 -> 52 | BF7: =BE7+1 -> 53 | BG7: =BF7+1 -> 54 | BH7: =BG7+1 -> 55 | BI7: =BH7+1 -> 56 | BJ7: =BI7+1 -> 57 | BK7: =BJ7+1 -> 58 | BL7: =BK7+1 -> 59 | BM7: =BL7+1 -> 60 | BN7: =BM7+1 -> 61 | BO7: =BN7+1 -> 62 | BP7: =BO7+1 -> 63 | BQ7: =BP7+1 -> 64 | BR7: =BQ7+1 -> 65 | BS7: =BR7+1 -> 66
B8: Financial Year | D8: Sum | E8: =Hidden!C3 -> 2023 | F8: =E8+1 -> 2024 | G8: =F8+1 -> 2025 | H8: 2026 | I8: 2027 | J8: 2028 | K8: 2029 | L8: 2030 | M8: 2031 | N8: 2032 | O8: 2033 | P8: 2034 | Q8: 2035 | R8: 2036 | S8: 2037 | T8: 2038 | U8: 2039 | V8: 2040 | W8: 2041 | X8: 2042 | Y8: 2043 | Z8: 2044 | AA8: 2045 | AB8: 2046 | AC8: 2047 | AD8: 2048 | AE8: 2049 | AF8: 2050 | AG8: 2051 | AH8: 2052 | AI8: 2053 | AJ8: 2054 | AK8: 2055 | AL8: 2056 | AM8: 2057 | AN8: 2058 | AO8: 2059 | AP8: 2060 | AQ8: 2061 | AR8: 2062 | AS8: 2063 | AT8: 2064 | AU8: 2065 | AV8: 2066 | AW8: 2067 | AX8: 2068 | AY8: 2069 | AZ8: 2070 | BA8: 2071 | BB8: 2072 | BC8: 2073 | BD8: 2074 | BE8: 2075 | BF8: 2076 | BG8: 2077 | BH8: 2078 | BI8: 2079 | BJ8: 2080 | BK8: 2081 | BL8: 2082 | BM8: 2083 | BN8: 2084 | BO8: 2085 | BP8: 2086 | BQ8: 2087 | BR8: 2088 | BS8: 2089
B9: Capex Start Flag | F9: =IF(F8=Hidden!$C$4,1,0) -> 0 | G9: =IF(G8=Hidden!$C$4,1,0) -> 0 | H9: =IF(H8=Hidden!$C$4,1,0) -> 1 | I9: =IF(I8=Hidden!$C$4,1,0) -> 0 | J9: =IF(J8=Hidden!$C$4,1,0) -> 0 | K9: =IF(K8=Hidden!$C$4,1,0) -> 0 | L9: =IF(L8=Hidden!$C$4,1,0) -> 0 | M9: =IF(M8=Hidden!$C$4,1,0) -> 0 | N9: =IF(N8=Hidden!$C$4,1,0) -> 0 | O9: =IF(O8=Hidden!$C$4,1,0) -> 0 | P9: =IF(P8=Hidden!$C$4,1,0) -> 0 | Q9: =IF(Q8=Hidden!$C$4,1,0) -> 0 | R9: =IF(R8=Hidden!$C$4,1,0) -> 0 | S9: =IF(S8=Hidden!$C$4,1,0) -> 0 | T9: =IF(T8=Hidden!$C$4,1,0) -> 0 | U9: =IF(U8=Hidden!$C$4,1,0) -> 0 | V9: =IF(V8=Hidden!$C$4,1,0) -> 0 | W9: =IF(W8=Hidden!$C$4,1,0) -> 0 | X9: =IF(X8=Hidden!$C$4,1,0) -> 0 | Y9: =IF(Y8=Hidden!$C$4,1,0) -> 0 | Z9: =IF(Z8=Hidden!$C$4,1,0) -> 0 | AA9: =IF(AA8=Hidden!$C$4,1,0) -> 0 | AB9: =IF(AB8=Hidden!$C$4,1,0) -> 0 | AC9: =IF(AC8=Hidden!$C$4,1,0) -> 0 | AD9: =IF(AD8=Hidden!$C$4,1,0) -> 0 | AE9: =IF(AE8=Hidden!$C$4,1,0) -> 0 | AF9: =IF(AF8=Hidden!$C$4,1,0) -> 0 | AG9: =IF(AG8=Hidden!$C$4,1,0) -> 0 | AH9: =IF(AH8=Hidden!$C$4,1,0) -> 0 | AI9: =IF(AI8=Hidden!$C$4,1,0) -> 0 | AJ9: =IF(AJ8=Hidden!$C$4,1,0) -> 0 | AK9: =IF(AK8=Hidden!$C$4,1,0) -> 0 | AL9: =IF(AL8=Hidden!$C$4,1,0) -> 0 | AM9: =IF(AM8=Hidden!$C$4,1,0) -> 0 | AN9: =IF(AN8=Hidden!$C$4,1,0) -> 0 | AO9: =IF(AO8=Hidden!$C$4,1,0) -> 0 | AP9: =IF(AP8=Hidden!$C$4,1,0) -> 0 | AQ9: =IF(AQ8=Hidden!$C$4,1,0) -> 0 | AR9: =IF(AR8=Hidden!$C$4,1,0) -> 0 | AS9: =IF(AS8=Hidden!$C$4,1,0) -> 0 | AT9: =IF(AT8=Hidden!$C$4,1,0) -> 0 | AU9: =IF(AU8=Hidden!$C$4,1,0) -> 0 | AV9: =IF(AV8=Hidden!$C$4,1,0) -> 0 | AW9: =IF(AW8=Hidden!$C$4,1,0) -> 0 | AX9: =IF(AX8=Hidden!$C$4,1,0) -> 0 | AY9: =IF(AY8=Hidden!$C$4,1,0) -> 0 | AZ9: =IF(AZ8=Hidden!$C$4,1,0) -> 0 | BA9: =IF(BA8=Hidden!$C$4,1,0) -> 0 | BB9: =IF(BB8=Hidden!$C$4,1,0) -> 0 | BC9: =IF(BC8=Hidden!$C$4,1,0) -> 0 | BD9: =IF(BD8=Hidden!$C$4,1,0) -> 0 | BE9: =IF(BE8=Hidden!$C$4,1,0) -> 0 | BF9: =IF(BF8=Hidden!$C$4,1,0) -> 0 | BG9: =IF(BG8=Hidden!$C$4,1,0) -> 0 | BH9: =IF(BH8=Hidden!$C$4,1,0) -> 0 | BI9: =IF(BI8=Hidden!$C$4,1,0) -> 0 | BJ9: =IF(BJ8=Hidden!$C$4,1,0) -> 0 | BK9: =IF(BK8=Hidden!$C$4,1,0) -> 0 | BL9: =IF(BL8=Hidden!$C$4,1,0) -> 0 | BM9: =IF(BM8=Hidden!$C$4,1,0) -> 0
B10: Capex | E10: =IFERROR(HLOOKUP(E8,Table_2,2,FALSE),0) -> 0 | F10: 0 | G10: 0 | H10: 3620640 | I10: 508517 | J10: 0 | K10: 0 | L10: 0 | M10: 0 | N10: 0 | O10: 0 | P10: 0 | Q10: 0 | R10: 0 | S10: 0 | T10: 0 | U10: 0 | V10: 0 | W10: 0 | X10: 0 | Y10: 0 | Z10: 0 | AA10: 0 | AB10: 0 | AC10: 0 | AD10: 0 | AE10: 0 | AF10: 0 | AG10: 0 | AH10: 0 | AI10: 0 | AJ10: 0 | AK10: 0 | AL10: 0 | AM10: 0 | AN10: 0 | AO10: 0
B11: Capex (Accumulative) | F11: =F10+E11 -> 0 | G11: =G10+F11 -> 0 | H11: 3620640 | I11: 4129157 | J11: 4129157 | K11: 4129157 | L11: 4129157 | M11: 4129157 | N11: 4129157 | O11: 4129157 | P11: 4129157 | Q11: 4129157 | R11: 4129157 | S11: 4129157 | T11: 4129157 | U11: 4129157 | V11: 4129157 | W11: 4129157 | X11: 4129157 | Y11: 4129157 | Z11: 4129157 | AA11: 4129157 | AB11: 4129157 | AC11: 4129157 | AD11: 4129157 | AE11: 4129157 | AF11: 4129157 | AG11: 4129157 | AH11: 4129157 | AI11: 4129157 | AJ11: 4129157 | AK11: 4129157 | AL11: 4129157 | AM11: 4129157 | AN11: 4129157 | AO11: 4129157 | AP11: =AP10+AO11 -> 4129157 | AQ11: =AQ10+AP11 -> 4129157 | AR11: =AR10+AQ11 -> 4129157 | AS11: =AS10+AR11 -> 4129157 | AT11: =AT10+AS11 -> 4129157 | AU11: =AU10+AT11 -> 4129157 | AV11: =AV10+AU11 -> 4129157 | AW11: =AW10+AV11 -> 4129157 | AX11: =AX10+AW11 -> 4129157 | AY11: =AY10+AX11 -> 4129157 | AZ11: =AZ10+AY11 -> 4129157 | BA11: =BA10+AZ11 -> 4129157 | BB11: =BB10+BA11 -> 4129157 | BC11: =BC10+BB11 -> 4129157 | BD11: =BD10+BC11 -> 4129157 | BE11: =BE10+BD11 -> 4129157 | BF11: =BF10+BE11 -> 4129157 | BG11: =BG10+BF11 -> 4129157 | BH11: =BH10+BG11 -> 4129157 | BI11: =BI10+BH11 -> 4129157 | BJ11: =BJ10+BI11 -> 4129157 | BK11: =BK10+BJ11 -> 4129157 | BL11: =BL10+BK11 -> 4129157 | BM11: =BM10+BL11 -> 4129157 | BN11: =BN10+BM11 -> 4129157 | BO11: =BO10+BN11 -> 4129157 | BP11: =BP10+BO11 -> 4129157 | BQ11: =BQ10+BP11 -> 4129157 | BR11: =BR10+BQ11 -> 4129157 | BS11: =BS10+BR11 -> 4129157
B12: Capex Finish (Accumulative) | F12: =IF(F11>=SUM($E$5:$I$5),1,0) -> 0 | G12: 0 | H12: 0 | I12: 1 | J12: 1 | K12: 1 | L12: 1 | M12: 1 | N12: 1 | O12: 1 | P12: 1 | Q12: 1 | R12: 1 | S12: 1 | T12: 1 | U12: 1 | V12: 1 | W12: 1 | X12: 1 | Y12: 1 | Z12: 1 | AA12: 1 | AB12: 1 | AC12: 1 | AD12: 1 | AE12: 1 | AF12: 1 | AG12: 1 | AH12: 1 | AI12: 1 | AJ12: 1 | AK12: 1 | AL12: =IF(AL11>=SUM($E$5:$I$5),1,0) -> 1 | AM12: 1 | AN12: 1 | AO12: 1 | AP12: 1 | AQ12: 1 | AR12: 1 | AS12: 1 | AT12: 1 | AU12: 1 | AV12: 1 | AW12: 1 | AX12: 1 | AY12: 1 | AZ12: 1 | BA12: 1 | BB12: 1 | BC12: 1 | BD12: 1 | BE12: 1 | BF12: 1 | BG12: 1 | BH12: 1 | BI12: 1 | BJ12: 1 | BK12: 1 | BL12: 1 | BM12: 1 | BN12: 1 | BO12: 1 | BP12: 1 | BQ12: 1 | BR12: =IF(BR11>=SUM($E$5:$I$5),1,0) -> 1 | BS12: 1
B13: Benefit Ramping Up | F13: 0 | G13: 0 | H13: =K5 -> 0.4738881699 | I13: =L5 -> 0.8959569464 | J13: 0.9298589106 | K13: 0.9646714439 | L13: 1 | M13: 0 | N13: 0 | O13: 0 | P13: 0 | Q13: 0 | R13: 0 | S13: 0 | T13: 0 | U13: 0 | V13: 0 | W13: 0 | X13: 0 | Y13: 0 | Z13: 0 | AA13: 0 | AB13: 0 | AC13: 0 | AD13: 0 | AE13: 0 | AF13: 0 | AG13: 0 | AH13: 0 | AI13: 0 | AJ13: 0 | AK13: 0 | AL13: 0 | AM13: 0 | AN13: 0 | AO13: 0 | AP13: 0 | AQ13: 0 | AR13: 0 | AS13: 0 | AT13: 0 | AU13: 0 | AV13: 0 | AW13: 0 | AX13: 0 | AY13: 0 | AZ13: 0 | BA13: 0 | BB13: 0 | BC13: 0 | BD13: 0 | BE13: 0 | BF13: 0 | BG13: 0 | BH13: 0 | BI13: 0 | BJ13: 0 | BK13: 0 | BL13: 0 | BM13: 0 | BN13: 0 | BO13: 0 | BP13: 0 | BQ13: 0 | BR13: 0 | BS13: 0
B14: Benefit Start Flag | F14: 0 | G14: 0 | H14: 0 | I14: 0 | J14: 0 | K14: 0 | L14: 0 | M14: 1 | N14: 1 | O14: 1 | P14: 1 | Q14: 1 | R14: 1 | S14: 1 | T14: 1 | U14: 1 | V14: 1 | W14: 1 | X14: 1 | Y14: 1 | Z14: 1 | AA14: 1 | AB14: 1 | AC14: 1 | AD14: 1 | AE14: 1 | AF14: 1 | AG14: 1 | AH14: 1 | AI14: 1 | AJ14: 1 | AK14: 1 | AL14: 1 | AM14: 1 | AN14: 1 | AO14: 1 | AP14: 1 | AQ14: 1 | AR14: 1 | AS14: 1 | AT14: 1 | AU14: 1 | AV14: 1 | AW14: 1 | AX14: 1 | AY14: 1 | AZ14: 1 | BA14: 1 | BB14: 1 | BC14: 1 | BD14: 1 | BE14: 1 | BF14: 1 | BG14: 1 | BH14: 1 | BI14: 1 | BJ14: 1 | BK14: 1 | BL14: 1 | BM14: 1 | BN14: 1 | BO14: 1 | BP14: 1 | BQ14: 1 | BR14: 1 | BS14: 1
B15: Benefit Count | F15: =F14+E15 -> 0 | G15: =G14+F15 -> 0 | H15: 0 | I15: 0 | J15: 0 | K15: 0 | L15: 0 | M15: 1 | N15: 2 | O15: 3 | P15: 4 | Q15: 5 | R15: 6 | S15: 7 | T15: 8 | U15: 9 | V15: 10 | W15: 11 | X15: 12 | Y15: 13 | Z15: 14 | AA15: 15 | AB15: 16 | AC15: 17 | AD15: 18 | AE15: 19 | AF15: 20 | AG15: 21 | AH15: 22 | AI15: 23 | AJ15: 24 | AK15: 25 | AL15: 26 | AM15: 27 | AN15: 28 | AO15: 29 | AP15: =AP14+AO15 -> 30 | AQ15: =AQ14+AP15 -> 31 | AR15: =AR14+AQ15 -> 32 | AS15: =AS14+AR15 -> 33 | AT15: =AT14+AS15 -> 34 | AU15: =AU14+AT15 -> 35 | AV15: =AV14+AU15 -> 36 | AW15: =AW14+AV15 -> 37 | AX15: =AX14+AW15 -> 38 | AY15: =AY14+AX15 -> 39 | AZ15: =AZ14+AY15 -> 40 | BA15: =BA14+AZ15 -> 41 | BB15: =BB14+BA15 -> 42 | BC15: =BC14+BB15 -> 43 | BD15: =BD14+BC15 -> 44 | BE15: =BE14+BD15 -> 45 | BF15: =BF14+BE15 -> 46 | BG15: =BG14+BF15 -> 47 | BH15: =BH14+BG15 -> 48 | BI15: =BI14+BH15 -> 49 | BJ15: =BJ14+BI15 -> 50 | BK15: =BK14+BJ15 -> 51 | BL15: =BL14+BK15 -> 52 | BM15: =BM14+BL15 -> 53 | BN15: =BN14+BM15 -> 54 | BO15: =BO14+BN15 -> 55 | BP15: =BP14+BO15 -> 56 | BQ15: =BQ14+BP15 -> 57 | BR15: =BR14+BQ15 -> 58 | BS15: =BS14+BR15 -> 59
B16: Benefit Sensitivity | F16: =IF(F11=0,0,Hidden!$C$6) -> 0 | G16: =IF(G11=0,0,Hidden!$C$6) -> 0 | H16: 1 | I16: 1 | J16: 1 | K16: =IF(K11=0,0,Hidden!$C$6) -> 1 | L16: =IF(L11=0,0,Hidden!$C$6) -> 1 | M16: =IF(M11=0,0,Hidden!$C$6) -> 1 | N16: =IF(N11=0,0,Hidden!$C$6) -> 1 | O16: =IF(O11=0,0,Hidden!$C$6) -> 1 | P16: =IF(P11=0,0,Hidden!$C$6) -> 1 | Q16: =IF(Q11=0,0,Hidden!$C$6) -> 1 | R16: =IF(R11=0,0,Hidden!$C$6) -> 1 | S16: =IF(S11=0,0,Hidden!$C$6) -> 1 | T16: =IF(T11=0,0,Hidden!$C$6) -> 1 | U16: =IF(U11=0,0,Hidden!$C$6) -> 1 | V16: =IF(V11=0,0,Hidden!$C$6) -> 1 | W16: =IF(W11=0,0,Hidden!$C$6) -> 1 | X16: =IF(X11=0,0,Hidden!$C$6) -> 1 | Y16: =IF(Y11=0,0,Hidden!$C$6) -> 1 | Z16: =IF(Z11=0,0,Hidden!$C$6) -> 1 | AA16: =IF(AA11=0,0,Hidden!$C$6) -> 1 | AB16: =IF(AB11=0,0,Hidden!$C$6) -> 1 | AC16: =IF(AC11=0,0,Hidden!$C$6) -> 1 | AD16: =IF(AD11=0,0,Hidden!$C$6) -> 1 | AE16: =IF(AE11=0,0,Hidden!$C$6) -> 1 | AF16: =IF(AF11=0,0,Hidden!$C$6) -> 1 | AG16: =IF(AG11=0,0,Hidden!$C$6) -> 1 | AH16: =IF(AH11=0,0,Hidden!$C$6) -> 1 | AI16: =IF(AI11=0,0,Hidden!$C$6) -> 1 | AJ16: =IF(AJ11=0,0,Hidden!$C$6) -> 1 | AK16: =IF(AK11=0,0,Hidden!$C$6) -> 1 | AL16: =IF(AL11=0,0,Hidden!$C$6) -> 1 | AM16: =IF(AM11=0,0,Hidden!$C$6) -> 1 | AN16: =IF(AN11=0,0,Hidden!$C$6) -> 1 | AO16: =IF(AO11=0,0,Hidden!$C$6) -> 1 | AP16: =IF(AP11=0,0,Hidden!$C$6) -> 1 | AQ16: =IF(AQ11=0,0,Hidden!$C$6) -> 1 | AR16: =IF(AR11=0,0,Hidden!$C$6) -> 1 | AS16: =IF(AS11=0,0,Hidden!$C$6) -> 1 | AT16: =IF(AT11=0,0,Hidden!$C$6) -> 1 | AU16: =IF(AU11=0,0,Hidden!$C$6) -> 1 | AV16: =IF(AV11=0,0,Hidden!$C$6) -> 1 | AW16: =IF(AW11=0,0,Hidden!$C$6) -> 1 | AX16: =IF(AX11=0,0,Hidden!$C$6) -> 1 | AY16: =IF(AY11=0,0,Hidden!$C$6) -> 1 | AZ16: =IF(AZ11=0,0,Hidden!$C$6) -> 1 | BA16: =IF(BA11=0,0,Hidden!$C$6) -> 1 | BB16: =IF(BB11=0,0,Hidden!$C$6) -> 1 | BC16: =IF(BC11=0,0,Hidden!$C$6) -> 1 | BD16: =IF(BD11=0,0,Hidden!$C$6) -> 1 | BE16: =IF(BE11=0,0,Hidden!$C$6) -> 1 | BF16: =IF(BF11=0,0,Hidden!$C$6) -> 1 | BG16: =IF(BG11=0,0,Hidden!$C$6) -> 1 | BH16: =IF(BH11=0,0,Hidden!$C$6) -> 1 | BI16: =IF(BI11=0,0,Hidden!$C$6) -> 1 | BJ16: =IF(BJ11=0,0,Hidden!$C$6) -> 1 | BK16: =IF(BK11=0,0,Hidden!$C$6) -> 1 | BL16: =IF(BL11=0,0,Hidden!$C$6) -> 1 | BM16: =IF(BM11=0,0,Hidden!$C$6) -> 1 | BN16: =IF(BN11=0,0,Hidden!$C$6) -> 1 | BO16: =IF(BO11=0,0,Hidden!$C$6) -> 1 | BP16: =IF(BP11=0,0,Hidden!$C$6) -> 1 | BQ16: =IF(BQ11=0,0,Hidden!$C$6) -> 1 | BR16: =IF(BR11=0,0,Hidden!$C$6) -> 1 | BS16: =IF(BS11=0,0,Hidden!$C$6) -> 1
B17: Benefit % to Be Applied | D17: =SUM(F17:BS17) -> 10.26437547 | F17: =IF(F8<=2030,F13,IF(OR(F15=0,F15>$P$5),0,1))*F16 -> 0 | G17: =IF(G8<=2030,G13,IF(OR(G15=0,G15>$P$5),0,1))*G16 -> 0 | H17: 0.4738881699 | I17: 0.8959569464 | J17: 0.9298589106 | K17: 0.9646714439 | L17: 1 | M17: 1 | N17: 1 | O17: 1 | P17: 1 | Q17: 1 | R17: 1 | S17: 0 | T17: 0 | U17: 0 | V17: 0 | W17: 0 | X17: 0 | Y17: 0 | Z17: 0 | AA17: 0 | AB17: 0 | AC17: 0 | AD17: 0 | AE17: 0 | AF17: 0 | AG17: 0 | AH17: 0 | AI17: 0 | AJ17: 0 | AK17: 0 | AL17: 0 | AM17: 0 | AN17: 0 | AO17: 0 | AP17: 0 | AQ17: 0 | AR17: 0 | AS17: 0 | AT17: 0 | AU17: 0 | AV17: 0 | AW17: 0 | AX17: 0 | AY17: 0 | AZ17: 0 | BA17: 0 | BB17: 0 | BC17: 0 | BD17: 0 | BE17: 0 | BF17: 0 | BG17: 0 | BH17: 0 | BI17: 0 | BJ17: 0 | BK17: 0 | BL17: 0 | BM17: 0 | BN17: 0 | BO17: 0 | BP17: 0 | BQ17: 0 | BR17: 0 | BS17: =IF(BS8<=2030,BS13,IF(OR(BS15=0,BS15>$P$5),0,1))*BS16 -> 0
B18: VCR Saving
B19: Lost Energy | C19: KWh | F19: =$R$5*$S$5*F17 -> 0 | G19: 0 | H19: 947.7763398 | I19: 1791.913893 | J19: 1859.717821 | K19: 1929.342888 | L19: 2000 | M19: 2000 | N19: 2000 | O19: 2000 | P19: 2000 | Q19: 2000 | R19: =$R$5*$S$5*R17 -> 2000 | S19: 0 | T19: 0 | U19: 0 | V19: 0 | W19: 0 | X19: 0 | Y19: 0 | Z19: 0 | AA19: 0 | AB19: 0 | AC19: 0 | AD19: 0 | AE19: 0 | AF19: 0 | AG19: 0 | AH19: 0 | AI19: 0 | AJ19: 0 | AK19: 0 | AL19: =$R$5*$S$5*AL17 -> 0 | AM19: 0 | AN19: 0 | AO19: 0 | AP19: 0 | AQ19: 0 | AR19: 0 | AS19: 0 | AT19: 0 | AU19: 0 | AV19: 0 | AW19: 0 | AX19: 0 | AY19: 0 | AZ19: 0 | BA19: 0 | BB19: 0 | BC19: 0 | BD19: 0 | BE19: 0 | BF19: 0 | BG19: 0 | BH19: 0 | BI19: 0 | BJ19: 0 | BK19: 0 | BL19: 0 | BM19: 0 | BN19: 0 | BO19: 0 | BP19: 0 | BQ19: 0 | BR19: 0 | BS19: 0
B20: Frequency of Event | C20: % | F20: =$T$5*F17 -> 0 | G20: 0 | H20: 0.4738881699 | I20: 0.8959569464 | J20: 0.9298589106 | K20: 0.9646714439 | L20: 1 | M20: 1 | N20: 1 | O20: 1 | P20: 1 | Q20: 1 | R20: =$T$5*R17 -> 1 | S20: 0 | T20: 0 | U20: 0 | V20: 0 | W20: 0 | X20: 0 | Y20: 0 | Z20: 0 | AA20: 0 | AB20: 0 | AC20: 0 | AD20: 0 | AE20: 0 | AF20: 0 | AG20: 0 | AH20: 0 | AI20: 0 | AJ20: 0 | AK20: 0 | AL20: =$T$5*AL17 -> 0 | AM20: 0 | AN20: 0 | AO20: 0 | AP20: 0 | AQ20: 0 | AR20: 0 | AS20: 0 | AT20: 0 | AU20: 0 | AV20: 0 | AW20: 0 | AX20: 0 | AY20: 0 | AZ20: 0 | BA20: 0 | BB20: 0 | BC20: 0 | BD20: 0 | BE20: 0 | BF20: 0 | BG20: 0 | BH20: 0 | BI20: 0 | BJ20: 0 | BK20: 0 | BL20: 0 | BM20: 0 | BN20: 0 | BO20: 0 | BP20: 0 | BQ20: 0 | BR20: 0 | BS20: 0
B21: VCR | C21: $/KWh | F21: =Hidden!$C$7*F$17 -> 0 | G21: =Hidden!$C$7*G$17 -> 0 | H21: =Hidden!$C$7*H$17 -> 24.5995349 | I21: =Hidden!$C$7*I$17 -> 46.50912509 | J21: =Hidden!$C$7*J$17 -> 48.26897605 | K21: =Hidden!$C$7*K$17 -> 50.07609465 | L21: =Hidden!$C$7*L$17 -> 51.91 | M21: =Hidden!$C$7*M$17 -> 51.91 | N21: =Hidden!$C$7*N$17 -> 51.91 | O21: =Hidden!$C$7*O$17 -> 51.91 | P21: =Hidden!$C$7*P$17 -> 51.91 | Q21: =Hidden!$C$7*Q$17 -> 51.91 | R21: =Hidden!$C$7*R$17 -> 51.91 | S21: =Hidden!$C$7*S$17 -> 0 | T21: =Hidden!$C$7*T$17 -> 0 | U21: =Hidden!$C$7*U$17 -> 0 | V21: =Hidden!$C$7*V$17 -> 0 | W21: =Hidden!$C$7*W$17 -> 0 | X21: =Hidden!$C$7*X$17 -> 0 | Y21: =Hidden!$C$7*Y$17 -> 0 | Z21: =Hidden!$C$7*Z$17 -> 0 | AA21: =Hidden!$C$7*AA$17 -> 0 | AB21: =Hidden!$C$7*AB$17 -> 0 | AC21: =Hidden!$C$7*AC$17 -> 0 | AD21: =Hidden!$C$7*AD$17 -> 0 | AE21: =Hidden!$C$7*AE$17 -> 0 | AF21: =Hidden!$C$7*AF$17 -> 0 | AG21: =Hidden!$C$7*AG$17 -> 0 | AH21: =Hidden!$C$7*AH$17 -> 0 | AI21: =Hidden!$C$7*AI$17 -> 0 | AJ21: =Hidden!$C$7*AJ$17 -> 0 | AK21: =Hidden!$C$7*AK$17 -> 0 | AL21: =Hidden!$C$7*AL$17 -> 0 | AM21: =Hidden!$C$7*AM$17 -> 0 | AN21: =Hidden!$C$7*AN$17 -> 0 | AO21: =Hidden!$C$7*AO$17 -> 0 | AP21: =Hidden!$C$7*AP$17 -> 0 | AQ21: =Hidden!$C$7*AQ$17 -> 0 | AR21: =Hidden!$C$7*AR$17 -> 0 | AS21: =Hidden!$C$7*AS$17 -> 0 | AT21: =Hidden!$C$7*AT$17 -> 0 | AU21: =Hidden!$C$7*AU$17 -> 0 | AV21: =Hidden!$C$7*AV$17 -> 0 | AW21: =Hidden!$C$7*AW$17 -> 0 | AX21: =Hidden!$C$7*AX$17 -> 0 | AY21: =Hidden!$C$7*AY$17 -> 0 | AZ21: =Hidden!$C$7*AZ$17 -> 0 | BA21: =Hidden!$C$7*BA$17 -> 0 | BB21: =Hidden!$C$7*BB$17 -> 0 | BC21: =Hidden!$C$7*BC$17 -> 0 | BD21: =Hidden!$C$7*BD$17 -> 0 | BE21: =Hidden!$C$7*BE$17 -> 0 | BF21: =Hidden!$C$7*BF$17 -> 0 | BG21: =Hidden!$C$7*BG$17 -> 0 | BH21: =Hidden!$C$7*BH$17 -> 0 | BI21: =Hidden!$C$7*BI$17 -> 0 | BJ21: =Hidden!$C$7*BJ$17 -> 0 | BK21: =Hidden!$C$7*BK$17 -> 0 | BL21: =Hidden!$C$7*BL$17 -> 0 | BM21: =Hidden!$C$7*BM$17 -> 0 | BN21: =Hidden!$C$7*BN$17 -> 0 | BO21: =Hidden!$C$7*BO$17 -> 0 | BP21: =Hidden!$C$7*BP$17 -> 0 | BQ21: =Hidden!$C$7*BQ$17 -> 0 | BR21: =Hidden!$C$7*BR$17 -> 0 | BS21: =Hidden!$C$7*BS$17 -> 0
B22: Financial Saving
B23: Labour Saving | C23: $ | F23: =$V$5*F$17 -> 0 | G23: 0 | H23: 0 | I23: 0 | J23: 0 | K23: 0 | L23: 0 | M23: 0 | N23: 0 | O23: 0 | P23: 0 | Q23: 0 | R23: 0 | S23: 0 | T23: 0 | U23: 0 | V23: 0 | W23: 0 | X23: 0 | Y23: 0 | Z23: 0 | AA23: 0 | AB23: 0 | AC23: 0 | AD23: 0 | AE23: 0 | AF23: 0 | AG23: 0 | AH23: 0 | AI23: 0 | AJ23: 0 | AK23: 0 | AL23: =$V$5*AL$17 -> 0 | AM23: 0 | AN23: 0 | AO23: 0 | AP23: 0 | AQ23: 0 | AR23: 0 | AS23: 0 | AT23: 0 | AU23: 0 | AV23: 0 | AW23: 0 | AX23: 0 | AY23: 0 | AZ23: 0 | BA23: 0 | BB23: 0 | BC23: 0 | BD23: 0 | BE23: 0 | BF23: 0 | BG23: 0 | BH23: 0 | BI23: 0 | BJ23: 0 | BK23: 0 | BL23: 0 | BM23: 0 | BN23: 0 | BO23: 0 | BP23: 0 | BQ23: 0 | BR23: 0 | BS23: 0
B24: Material Saving | C24: $ | F24: =$W$5*F$17 -> 0 | G24: 0 | H24: 0 | I24: 0 | J24: 0 | K24: 0 | L24: 0 | M24: 0 | N24: 0 | O24: 0 | P24: 0 | Q24: 0 | R24: 0 | S24: 0 | T24: 0 | U24: 0 | V24: 0 | W24: 0 | X24: 0 | Y24: 0 | Z24: 0 | AA24: 0 | AB24: 0 | AC24: 0 | AD24: 0 | AE24: 0 | AF24: 0 | AG24: 0 | AH24: 0 | AI24: 0 | AJ24: 0 | AK24: 0 | AL24: =$W$5*AL$17 -> 0 | AM24: 0 | AN24: 0 | AO24: 0 | AP24: 0 | AQ24: 0 | AR24: 0 | AS24: 0 | AT24: 0 | AU24: 0 | AV24: 0 | AW24: 0 | AX24: 0 | AY24: 0 | AZ24: 0 | BA24: 0 | BB24: 0 | BC24: 0 | BD24: 0 | BE24: 0 | BF24: 0 | BG24: 0 | BH24: 0 | BI24: 0 | BJ24: 0 | BK24: 0 | BL24: 0 | BM24: 0 | BN24: 0 | BO24: 0 | BP24: 0 | BQ24: 0 | BR24: 0 | BS24: 0
B25: Other Saving | C25: $ | F25: =$X5*F$17 -> 0 | G25: 0 | H25: 182230.793 | I25: 344534.7557 | J25: 357571.5483 | K25: 370958.4948 | L25: 384543.8746 | M25: 384543.8746 | N25: 384543.8746 | O25: 384543.8746 | P25: 384543.8746 | Q25: 384543.8746 | R25: 384543.8746 | S25: 0 | T25: 0 | U25: 0 | V25: 0 | W25: 0 | X25: 0 | Y25: 0 | Z25: 0 | AA25: 0 | AB25: 0 | AC25: 0 | AD25: 0 | AE25: 0 | AF25: 0 | AG25: 0 | AH25: 0 | AI25: 0 | AJ25: 0 | AK25: 0 | AL25: =$X5*AL$17 -> 0 | AM25: 0 | AN25: 0 | AO25: 0 | AP25: 0 | AQ25: 0 | AR25: 0 | AS25: 0 | AT25: 0 | AU25: 0 | AV25: 0 | AW25: 0 | AX25: 0 | AY25: 0 | AZ25: 0 | BA25: 0 | BB25: 0 | BC25: 0 | BD25: 0 | BE25: 0 | BF25: 0 | BG25: 0 | BH25: 0 | BI25: 0 | BJ25: 0 | BK25: 0 | BL25: 0 | BM25: 0 | BN25: 0 | BO25: 0 | BP25: 0 | BQ25: 0 | BR25: 0 | BS25: 0
B26: Replacement Cost Saving | C26: $ | F26: =$Y5*$Z$5*F$17 -> 0 | G26: 0 | H26: 0 | I26: 0 | J26: 0 | K26: 0 | L26: 0 | M26: 0 | N26: 0 | O26: 0 | P26: 0 | Q26: 0 | R26: 0 | S26: 0 | T26: 0 | U26: 0 | V26: 0 | W26: 0 | X26: 0 | Y26: 0 | Z26: 0 | AA26: 0 | AB26: 0 | AC26: 0 | AD26: 0 | AE26: 0 | AF26: 0 | AG26: 0 | AH26: 0 | AI26: 0 | AJ26: 0 | AK26: 0 | AL26: =$Y5*$Z$5*AL$17 -> 0 | AM26: 0 | AN26: 0 | AO26: 0 | AP26: 0 | AQ26: 0 | AR26: 0 | AS26: 0 | AT26: 0 | AU26: 0 | AV26: 0 | AW26: 0 | AX26: 0 | AY26: 0 | AZ26: 0 | BA26: 0 | BB26: 0 | BC26: 0 | BD26: 0 | BE26: 0 | BF26: 0 | BG26: 0 | BH26: 0 | BI26: 0 | BJ26: 0 | BK26: 0 | BL26: 0 | BM26: 0 | BN26: 0 | BO26: 0 | BP26: 0 | BQ26: 0 | BR26: 0 | BS26: 0
B27: Safety Saving
B28: =B27 -> Safety Saving | C28: $ | F28: =F$17*($AC$5*$AB$5+$AE$5*$AD$5) -> 0 | G28: 0 | H28: 0 | I28: =I$17*($AC$5*$AB$5+$AE$5*$AD$5) -> 0 | J28: =J$17*($AC$5*$AB$5+$AE$5*$AD$5) -> 0 | K28: 0 | L28: 0 | M28: 0 | N28: 0 | O28: 0 | P28: 0 | Q28: 0 | R28: 0 | S28: 0 | T28: 0 | U28: 0 | V28: 0 | W28: 0 | X28: 0 | Y28: 0 | Z28: 0 | AA28: 0 | AB28: 0 | AC28: 0 | AD28: 0 | AE28: 0 | AF28: 0 | AG28: 0 | AH28: 0 | AI28: 0 | AJ28: 0 | AK28: 0 | AL28: =AL$17*($AC$5*$AB$5+$AE$5*$AD$5) -> 0 | AM28: 0 | AN28: 0 | AO28: 0 | AP28: 0 | AQ28: 0 | AR28: 0 | AS28: 0 | AT28: 0 | AU28: 0 | AV28: 0 | AW28: 0 | AX28: 0 | AY28: 0 | AZ28: 0 | BA28: 0 | BB28: 0 | BC28: 0 | BD28: 0 | BE28: 0 | BF28: 0 | BG28: 0 | BH28: 0 | BI28: 0 | BJ28: 0 | BK28: 0 | BL28: 0 | BM28: 0 | BN28: 0 | BO28: 0 | BP28: 0 | BQ28: 0 | BR28: 0 | BS28: 0
B29: Environmental Saving
B30: Carbon Price | C30: $/Ton | F30: =Carbon_Price*F$17 -> 0 | G30: 0 | H30: 14.2166451 | I30: 26.87870839 | J30: 27.89576732 | K30: 28.94014332 | L30: 30 | M30: 30 | N30: 30 | O30: 30 | P30: 30 | Q30: 30 | R30: 30 | S30: 0 | T30: 0 | U30: 0 | V30: 0 | W30: 0 | X30: 0 | Y30: 0 | Z30: 0 | AA30: 0 | AB30: 0 | AC30: 0 | AD30: 0 | AE30: 0 | AF30: 0 | AG30: 0 | AH30: 0 | AI30: 0 | AJ30: 0 | AK30: 0 | AL30: =Carbon_Price*AL$17 -> 0 | AM30: 0 | AN30: 0 | AO30: 0 | AP30: 0 | AQ30: 0 | AR30: 0 | AS30: 0 | AT30: 0 | AU30: 0 | AV30: 0 | AW30: 0 | AX30: 0 | AY30: 0 | AZ30: 0 | BA30: 0 | BB30: 0 | BC30: 0 | BD30: 0 | BE30: 0 | BF30: 0 | BG30: 0 | BH30: 0 | BI30: 0 | BJ30: 0 | BK30: 0 | BL30: 0 | BM30: 0 | BN30: 0 | BO30: 0 | BP30: 0 | BQ30: 0 | BR30: 0 | BS30: 0
B31: Carbon | C31: Ton | F31: =$AK$5*Hidden!$C$8*F$17 -> 0 | G31: =$AK$5*Hidden!$C$8*G$17 -> 0 | H31: =$AK$5*Hidden!$C$8*H$17 -> 0 | I31: =$AK$5*Hidden!$C$8*I$17 -> 0 | J31: =$AK$5*Hidden!$C$8*J$17 -> 0 | K31: =$AK$5*Hidden!$C$8*K$17 -> 0 | L31: =$AK$5*Hidden!$C$8*L$17 -> 0 | M31: =$AK$5*Hidden!$C$8*M$17 -> 0 | N31: =$AK$5*Hidden!$C$8*N$17 -> 0 | O31: =$AK$5*Hidden!$C$8*O$17 -> 0 | P31: =$AK$5*Hidden!$C$8*P$17 -> 0 | Q31: =$AK$5*Hidden!$C$8*Q$17 -> 0 | R31: =$AK$5*Hidden!$C$8*R$17 -> 0 | S31: =$AK$5*Hidden!$C$8*S$17 -> 0 | T31: =$AK$5*Hidden!$C$8*T$17 -> 0 | U31: =$AK$5*Hidden!$C$8*U$17 -> 0 | V31: =$AK$5*Hidden!$C$8*V$17 -> 0 | W31: =$AK$5*Hidden!$C$8*W$17 -> 0 | X31: =$AK$5*Hidden!$C$8*X$17 -> 0 | Y31: =$AK$5*Hidden!$C$8*Y$17 -> 0 | Z31: =$AK$5*Hidden!$C$8*Z$17 -> 0 | AA31: =$AK$5*Hidden!$C$8*AA$17 -> 0 | AB31: =$AK$5*Hidden!$C$8*AB$17 -> 0 | AC31: =$AK$5*Hidden!$C$8*AC$17 -> 0 | AD31: =$AK$5*Hidden!$C$8*AD$17 -> 0 | AE31: =$AK$5*Hidden!$C$8*AE$17 -> 0 | AF31: =$AK$5*Hidden!$C$8*AF$17 -> 0 | AG31: =$AK$5*Hidden!$C$8*AG$17 -> 0 | AH31: =$AK$5*Hidden!$C$8*AH$17 -> 0 | AI31: =$AK$5*Hidden!$C$8*AI$17 -> 0 | AJ31: =$AK$5*Hidden!$C$8*AJ$17 -> 0 | AK31: =$AK$5*Hidden!$C$8*AK$17 -> 0 | AL31: =$AK$5*Hidden!$C$8*AL$17 -> 0 | AM31: =$AK$5*Hidden!$C$8*AM$17 -> 0 | AN31: =$AK$5*Hidden!$C$8*AN$17 -> 0 | AO31: =$AK$5*Hidden!$C$8*AO$17 -> 0 | AP31: =$AK$5*Hidden!$C$8*AP$17 -> 0 | AQ31: =$AK$5*Hidden!$C$8*AQ$17 -> 0 | AR31: =$AK$5*Hidden!$C$8*AR$17 -> 0 | AS31: =$AK$5*Hidden!$C$8*AS$17 -> 0 | AT31: =$AK$5*Hidden!$C$8*AT$17 -> 0 | AU31: =$AK$5*Hidden!$C$8*AU$17 -> 0 | AV31: =$AK$5*Hidden!$C$8*AV$17 -> 0 | AW31: =$AK$5*Hidden!$C$8*AW$17 -> 0 | AX31: =$AK$5*Hidden!$C$8*AX$17 -> 0 | AY31: =$AK$5*Hidden!$C$8*AY$17 -> 0 | AZ31: =$AK$5*Hidden!$C$8*AZ$17 -> 0 | BA31: =$AK$5*Hidden!$C$8*BA$17 -> 0 | BB31: =$AK$5*Hidden!$C$8*BB$17 -> 0 | BC31: =$AK$5*Hidden!$C$8*BC$17 -> 0 | BD31: =$AK$5*Hidden!$C$8*BD$17 -> 0 | BE31: =$AK$5*Hidden!$C$8*BE$17 -> 0 | BF31: =$AK$5*Hidden!$C$8*BF$17 -> 0 | BG31: =$AK$5*Hidden!$C$8*BG$17 -> 0 | BH31: =$AK$5*Hidden!$C$8*BH$17 -> 0 | BI31: =$AK$5*Hidden!$C$8*BI$17 -> 0 | BJ31: =$AK$5*Hidden!$C$8*BJ$17 -> 0 | BK31: =$AK$5*Hidden!$C$8*BK$17 -> 0 | BL31: =$AK$5*Hidden!$C$8*BL$17 -> 0 | BM31: =$AK$5*Hidden!$C$8*BM$17 -> 0 | BN31: =$AK$5*Hidden!$C$8*BN$17 -> 0 | BO31: =$AK$5*Hidden!$C$8*BO$17 -> 0 | BP31: =$AK$5*Hidden!$C$8*BP$17 -> 0 | BQ31: =$AK$5*Hidden!$C$8*BQ$17 -> 0 | BR31: =$AK$5*Hidden!$C$8*BR$17 -> 0 | BS31: =$AK$5*Hidden!$C$8*BS$17 -> 0
B32: Carbon Reduction Saving | C32: $ | F32: =F31*F30 -> 0 | G32: =G31*G30 -> 0 | H32: 0 | I32: 0 | J32: 0 | K32: 0 | L32: 0 | M32: 0 | N32: 0 | O32: 0 | P32: 0 | Q32: 0 | R32: 0 | S32: 0 | T32: 0 | U32: 0 | V32: 0 | W32: 0 | X32: 0 | Y32: 0 | Z32: 0 | AA32: 0 | AB32: 0 | AC32: 0 | AD32: 0 | AE32: 0 | AF32: 0 | AG32: 0 | AH32: 0 | AI32: 0 | AJ32: 0 | AK32: 0 | AL32: 0 | AM32: 0 | AN32: 0 | AO32: 0 | AP32: 0 | AQ32: 0 | AR32: 0 | AS32: 0 | AT32: 0 | AU32: 0 | AV32: 0 | AW32: 0 | AX32: 0 | AY32: 0 | AZ32: 0 | BA32: 0 | BB32: 0 | BC32: 0 | BD32: 0 | BE32: 0 | BF32: 0 | BG32: 0 | BH32: 0 | BI32: 0 | BJ32: 0 | BK32: 0 | BL32: 0 | BM32: 0 | BN32: 0 | BO32: 0 | BP32: 0 | BQ32: 0 | BR32: 0 | BS32: =BS31*BS30 -> 0
B33: Bush Fire/Flood | F33: =$AH$5*$AG$5*F$17 -> 0 | G33: 0 | H33: 0 | I33: 0 | J33: 0 | K33: 0 | L33: 0 | M33: 0 | N33: 0 | O33: 0 | P33: 0 | Q33: 0 | R33: 0 | S33: 0 | T33: 0 | U33: 0 | V33: 0 | W33: 0 | X33: 0 | Y33: 0 | Z33: 0 | AA33: 0 | AB33: 0 | AC33: 0 | AD33: 0 | AE33: 0 | AF33: 0 | AG33: 0 | AH33: 0 | AI33: 0 | AJ33: 0 | AK33: 0 | AL33: =$AH$5*$AG$5*AL$17 -> 0 | AM33: 0 | AN33: 0 | AO33: 0 | AP33: 0 | AQ33: 0 | AR33: 0 | AS33: 0 | AT33: 0 | AU33: 0 | AV33: 0 | AW33: 0 | AX33: 0 | AY33: 0 | AZ33: 0 | BA33: 0 | BB33: 0 | BC33: 0 | BD33: 0 | BE33: 0 | BF33: 0 | BG33: 0 | BH33: 0 | BI33: 0 | BJ33: 0 | BK33: 0 | BL33: 0 | BM33: 0 | BN33: 0 | BO33: 0 | BP33: 0 | BQ33: 0 | BR33: 0 | BS33: 0
B34: Oil Spilt | F34: =$AJ$5*$AI$5*F$17 -> 0 | G34: 0 | H34: 0 | I34: 0 | J34: 0 | K34: 0 | L34: 0 | M34: 0 | N34: 0 | O34: 0 | P34: 0 | Q34: 0 | R34: 0 | S34: 0 | T34: 0 | U34: 0 | V34: 0 | W34: 0 | X34: 0 | Y34: 0 | Z34: 0 | AA34: 0 | AB34: 0 | AC34: 0 | AD34: 0 | AE34: 0 | AF34: 0 | AG34: 0 | AH34: 0 | AI34: 0 | AJ34: 0 | AK34: 0 | AL34: =$AJ$5*$AI$5*AL$17 -> 0 | AM34: 0 | AN34: 0 | AO34: 0 | AP34: 0 | AQ34: 0 | AR34: 0 | AS34: 0 | AT34: 0 | AU34: 0 | AV34: 0 | AW34: 0 | AX34: 0 | AY34: 0 | AZ34: 0 | BA34: 0 | BB34: 0 | BC34: 0 | BD34: 0 | BE34: 0 | BF34: 0 | BG34: 0 | BH34: 0 | BI34: 0 | BJ34: 0 | BK34: 0 | BL34: 0 | BM34: 0 | BN34: 0 | BO34: 0 | BP34: 0 | BQ34: 0 | BR34: 0 | BS34: 0
B36: Cashflow Outflow
B37: Capex | D37: =SUM(F37:BM37) -> -4129157 | F37: =IFERROR(-HLOOKUP(F8,Table_2,2,FALSE),0) -> 0 | G37: 0 | H37: -3620640 | I37: -508517 | J37: 0 | K37: 0 | L37: 0 | M37: 0 | N37: 0 | O37: 0 | P37: 0 | Q37: 0 | R37: 0 | S37: 0 | T37: 0 | U37: 0 | V37: 0 | W37: 0 | X37: 0 | Y37: 0 | Z37: 0 | AA37: 0 | AB37: 0 | AC37: 0 | AD37: 0 | AE37: 0 | AF37: 0 | AG37: 0 | AH37: 0 | AI37: 0 | AJ37: 0 | AK37: 0 | AL37: =IFERROR(-HLOOKUP(AL8,Table_2,2,FALSE),0) -> 0 | AM37: 0 | AN37: 0 | AO37: 0 | AP37: 0 | AQ37: 0 | AR37: 0 | AS37: 0 | AT37: 0 | AU37: 0 | AV37: 0 | AW37: 0 | AX37: 0 | AY37: 0 | AZ37: 0 | BA37: 0 | BB37: 0 | BC37: 0 | BD37: 0 | BE37: 0 | BF37: 0 | BG37: 0 | BH37: 0 | BI37: 0 | BJ37: 0 | BK37: 0 | BL37: 0 | BM37: 0 | BN37: 0 | BO37: 0 | BP37: 0 | BQ37: 0 | BR37: 0 | BS37: 0
B38: O&M | D38: =SUM(F38:BM38) -> -173699.9857 | F38: =-SUM($E$5:$I$5)*$J$5*F$17 -> 0 | G38: =-SUM($E$5:$I$5)*$J$5*G$17 -> 0 | H38: =-SUM($E$5:$I$5)*$J$5 -> -11579.99905 | I38: =-SUM($E$5:$I$5)*$J$5 -> -11579.99905 | J38: =-SUM($E$5:$I$5)*$J$5 -> -11579.99905 | K38: -11579.99905 | L38: -11579.99905 | M38: -11579.99905 | N38: -11579.99905 | O38: -11579.99905 | P38: -11579.99905 | Q38: -11579.99905 | R38: -11579.99905 | S38: -11579.99905 | T38: -11579.99905 | U38: -11579.99905 | V38: -11579.99905 | W38: 0 | X38: 0 | Y38: 0 | Z38: 0 | AA38: 0 | AB38: 0 | AC38: 0 | AD38: 0 | AE38: 0 | AF38: 0 | AG38: 0 | AH38: 0 | AI38: 0 | AJ38: 0 | AK38: 0 | AL38: 0 | AM38: 0 | AN38: 0 | AO38: 0 | AP38: 0 | AQ38: 0 | AR38: 0 | AS38: 0 | AT38: 0 | AU38: 0 | AV38: 0 | AW38: 0 | AX38: 0 | AY38: 0 | AZ38: 0 | BA38: 0 | BB38: 0 | BC38: 0 | BD38: 0 | BE38: 0 | BF38: 0 | BG38: 0 | BH38: 0 | BI38: 0 | BJ38: 0 | BK38: 0 | BL38: 0 | BM38: 0 | BN38: 0 | BO38: 0 | BP38: 0 | BQ38: 0 | BR38: 0 | BS38: =-SUM($E$5:$I$5)*$J$5*BS$17 -> 0
B39: Total Cashflow Outflow | D39: -4302856.986 | F39: =SUM(F37:F38) -> 0 | G39: =SUM(G37:G38) -> 0 | H39: -3632219.999 | I39: -520096.999 | J39: -11579.99905 | K39: -11579.99905 | L39: -11579.99905 | M39: -11579.99905 | N39: -11579.99905 | O39: -11579.99905 | P39: -11579.99905 | Q39: -11579.99905 | R39: -11579.99905 | S39: -11579.99905 | T39: -11579.99905 | U39: -11579.99905 | V39: -11579.99905 | W39: 0 | X39: 0 | Y39: 0 | Z39: 0 | AA39: 0 | AB39: 0 | AC39: 0 | AD39: 0 | AE39: 0 | AF39: 0 | AG39: 0 | AH39: 0 | AI39: 0 | AJ39: 0 | AK39: 0 | AL39: =SUM(AL37:AL38) -> 0 | AM39: 0 | AN39: 0 | AO39: 0 | AP39: 0 | AQ39: 0 | AR39: 0 | AS39: 0 | AT39: 0 | AU39: 0 | AV39: 0 | AW39: 0 | AX39: 0 | AY39: 0 | AZ39: 0 | BA39: 0 | BB39: 0 | BC39: 0 | BD39: 0 | BE39: 0 | BF39: 0 | BG39: 0 | BH39: 0 | BI39: 0 | BJ39: 0 | BK39: 0 | BL39: 0 | BM39: 0
B41: Cashflow Inflow (Benefit) | D41: Sum
B42: VCR Saving | D42: =SUM(F42:BM42) -> 989129.0662 | F42: =IF($Q$5="Yes",F21*F20*F19,0) -> 0 | G42: 0 | H42: 11048.63499 | I42: 74669.36315 | J42: 83470.34259 | K42: 93200.72547 | L42: 103820 | M42: 103820 | N42: 103820 | O42: 103820 | P42: 103820 | Q42: 103820 | R42: 103820 | S42: 0 | T42: 0 | U42: 0 | V42: 0 | W42: 0 | X42: 0 | Y42: 0 | Z42: 0 | AA42: 0 | AB42: 0 | AC42: 0 | AD42: 0 | AE42: 0 | AF42: 0 | AG42: 0 | AH42: 0 | AI42: 0 | AJ42: 0 | AK42: 0 | AL42: =IF($Q$5="Yes",AL21*AL20*AL19,0) -> 0 | AM42: 0 | AN42: 0 | AO42: 0 | AP42: 0 | AQ42: 0 | AR42: 0 | AS42: 0 | AT42: 0 | AU42: 0 | AV42: 0 | AW42: 0 | AX42: 0 | AY42: 0 | AZ42: 0 | BA42: 0 | BB42: 0 | BC42: 0 | BD42: 0 | BE42: 0 | BF42: 0 | BG42: 0 | BH42: 0 | BI42: 0 | BJ42: 0 | BK42: 0 | BL42: 0 | BM42: 0 | BN42: 0 | BO42: 0 | BP42: 0 | BQ42: 0 | BR42: 0 | BS42: 0
B43: Financial Saving | D43: =SUM(F43:BM43) -> 3947102.714 | F43: =IF($U$5="Yes",(F23+F24+F25+F26),0) -> 0 | G43: 0 | H43: 182230.793 | I43: 344534.7557 | J43: 357571.5483 | K43: 370958.4948 | L43: 384543.8746 | M43: 384543.8746 | N43: 384543.8746 | O43: 384543.8746 | P43: 384543.8746 | Q43: 384543.8746 | R43: 384543.8746 | S43: 0 | T43: 0 | U43: 0 | V43: 0 | W43: 0 | X43: 0 | Y43: 0 | Z43: 0 | AA43: 0 | AB43: 0 | AC43: 0 | AD43: 0 | AE43: 0 | AF43: 0 | AG43: 0 | AH43: 0 | AI43: 0 | AJ43: 0 | AK43: 0 | AL43: =IF($U$5="Yes",(AL23+AL24+AL25+AL26),0) -> 0 | AM43: 0 | AN43: 0 | AO43: 0 | AP43: 0 | AQ43: 0 | AR43: 0 | AS43: 0 | AT43: 0 | AU43: 0 | AV43: 0 | AW43: 0 | AX43: 0 | AY43: 0 | AZ43: 0 | BA43: 0 | BB43: 0 | BC43: 0 | BD43: 0 | BE43: 0 | BF43: 0 | BG43: 0 | BH43: 0 | BI43: 0 | BJ43: 0 | BK43: 0 | BL43: 0 | BM43: 0 | BN43: 0 | BO43: 0 | BP43: 0 | BQ43: 0 | BR43: 0 | BS43: 0
B44: Safety Saving | D44: 0 | F44: =IF($U$5="Yes",F28,0) -> 0 | G44: 0 | H44: 0 | I44: =IF($U$5="Yes",I28,0) -> 0 | J44: 0 | K44: 0 | L44: 0 | M44: 0 | N44: 0 | O44: 0 | P44: 0 | Q44: 0 | R44: 0 | S44: 0 | T44: 0 | U44: 0 | V44: 0 | W44: 0 | X44: 0 | Y44: 0 | Z44: 0 | AA44: 0 | AB44: 0 | AC44: 0 | AD44: 0 | AE44: 0 | AF44: 0 | AG44: 0 | AH44: 0 | AI44: 0 | AJ44: 0 | AK44: 0 | AL44: =IF($U$5="Yes",AL28,0) -> 0 | AM44: 0 | AN44: 0 | AO44: 0 | AP44: 0 | AQ44: 0 | AR44: 0 | AS44: 0 | AT44: 0 | AU44: 0 | AV44: 0 | AW44: 0 | AX44: 0 | AY44: 0 | AZ44: 0 | BA44: 0 | BB44: 0 | BC44: 0 | BD44: 0 | BE44: 0 | BF44: 0 | BG44: 0 | BH44: 0 | BI44: 0 | BJ44: 0 | BK44: 0 | BL44: 0 | BM44: 0 | BN44: 0 | BO44: 0 | BP44: 0 | BQ44: 0 | BR44: 0 | BS44: 0
B45: Environmental Saving | D45: 0 | F45: =IF($AA$5="Yes",F32+F33+F34,0) -> 0 | G45: 0 | H45: 0 | I45: 0 | J45: 0 | K45: 0 | L45: 0 | M45: 0 | N45: 0 | O45: 0 | P45: 0 | Q45: 0 | R45: 0 | S45: 0 | T45: 0 | U45: 0 | V45: 0 | W45: 0 | X45: 0 | Y45: 0 | Z45: 0 | AA45: 0 | AB45: 0 | AC45: 0 | AD45: 0 | AE45: 0 | AF45: 0 | AG45: 0 | AH45: 0 | AI45: 0 | AJ45: 0 | AK45: 0 | AL45: =IF($AA$5="Yes",AL32+AL33+AL34,0) -> 0 | AM45: 0 | AN45: 0 | AO45: 0 | AP45: 0 | AQ45: 0 | AR45: 0 | AS45: 0 | AT45: 0 | AU45: 0 | AV45: 0 | AW45: 0 | AX45: 0 | AY45: 0 | AZ45: 0 | BA45: 0 | BB45: 0 | BC45: 0 | BD45: 0 | BE45: 0 | BF45: 0 | BG45: 0 | BH45: 0 | BI45: 0 | BJ45: 0 | BK45: 0 | BL45: 0 | BM45: 0 | BN45: 0 | BO45: 0 | BP45: 0 | BQ45: 0 | BR45: 0 | BS45: 0
B46: Total Cashflow Inflow | D46: =SUM(F46:BM46) -> 4936231.78 | F46: =SUM(F42:F45) -> 0 | G46: 0 | H46: 193279.428 | I46: 419204.1188 | J46: 441041.8909 | K46: 464159.2203 | L46: 488363.8746 | M46: 488363.8746 | N46: 488363.8746 | O46: 488363.8746 | P46: 488363.8746 | Q46: 488363.8746 | R46: 488363.8746 | S46: 0 | T46: 0 | U46: 0 | V46: 0 | W46: 0 | X46: 0 | Y46: 0 | Z46: 0 | AA46: 0 | AB46: 0 | AC46: 0 | AD46: 0 | AE46: 0 | AF46: 0 | AG46: 0 | AH46: 0 | AI46: 0 | AJ46: 0 | AK46: 0 | AL46: 0 | AM46: 0 | AN46: 0 | AO46: 0 | AP46: 0 | AQ46: 0 | AR46: 0 | AS46: 0 | AT46: 0 | AU46: 0 | AV46: 0 | AW46: 0 | AX46: 0 | AY46: 0 | AZ46: 0 | BA46: 0 | BB46: 0 | BC46: 0 | BD46: 0 | BE46: 0 | BF46: 0 | BG46: 0 | BH46: 0 | BI46: 0 | BJ46: 0 | BK46: 0 | BL46: 0 | BM46: 0 | BN46: 0 | BO46: 0 | BP46: 0 | BQ46: 0 | BR46: =SUM(BR42:BR45) -> 0 | BS46: 0
B48: Net Cashflow | D48: =SUM(F48:BM48) -> 633374.7746 | F48: =F39+F46-0.01 -> -0.01 | G48: =G39+G46-0.01 -> -0.01 | H48: =H39+H46 -> -3438940.571 | I48: -100892.8802 | J48: 429461.8919 | K48: 452579.2212 | L48: 476783.8756 | M48: 476783.8756 | N48: 476783.8756 | O48: 476783.8756 | P48: 476783.8756 | Q48: 476783.8756 | R48: 476783.8756 | S48: -11579.99905 | T48: -11579.99905 | U48: -11579.99905 | V48: -11579.99905 | W48: 0 | X48: 0 | Y48: 0 | Z48: 0 | AA48: 0 | AB48: 0 | AC48: 0 | AD48: 0 | AE48: 0 | AF48: 0 | AG48: 0 | AH48: 0 | AI48: 0 | AJ48: 0 | AK48: 0 | AL48: 0 | AM48: 0 | AN48: =AN39+AN46 -> 0 | AO48: 0 | AP48: 0 | AQ48: 0 | AR48: 0 | AS48: 0 | AT48: 0 | AU48: 0 | AV48: 0 | AW48: 0 | AX48: 0 | AY48: 0 | AZ48: 0 | BA48: 0 | BB48: 0 | BC48: 0 | BD48: 0 | BE48: 0 | BF48: 0 | BG48: 0 | BH48: 0 | BI48: 0 | BJ48: 0 | BK48: 0 | BL48: 0 | BM48: 0 | BN48: =BN39+BN46 -> 0 | BO48: 0 | BP48: 0 | BQ48: 0 | BR48: 0 | BS48: 0
B50: NPV | D50: =NPV(WACC,DCF!F48:BM48) -> -115465.9747

Sheet NPV_Output
A1: ="R"&ROW(Start_1)+Index_1*1-1&"C"&COLUMN(Start_1) -> R6C8
B2: NPV Summary | F2: WACC: | G2: =Hidden!C5 -> 0.035
B4: Index | C4: GT Stream | D4: WR Description | E4: GT Lvl 3 Managers | F4: DNSP | G4: Total Capex | H4: NPV
B5: 1 | C5: =IF(Project_Input!C6=0,"",Project_Input!C6) ->  | D5: =IF(Project_Input!D6=0,"",Project_Input!D6) -> Ergon AER Response | E5: =IF(Project_Input!E6=0,"",Project_Input!E6) ->  | F5: =IF(Project_Input!F6=0,"",Project_Input!F6) ->  | G5: =IF(Project_Input!L6<>"",Project_Input!L6,"") ->  | H5: -0.01899694275
B6: =B5+1 -> 2 | C6: =IF(Project_Input!C7=0,"",Project_Input!C7) -> OT | D6: =IF(Project_Input!D7=0,"",Project_Input!D7) -> Server & Workstation_ERG_1829387 | E6: =IF(Project_Input!E7=0,"",Project_Input!E7) ->  | F6: =IF(Project_Input!F7=0,"",Project_Input!F7) -> ERG | G6: =IF(Project_Input!L7<>"",Project_Input!L7,"") -> 4129157 | H6: -115465.9747
B7: =B6+1 -> 3 | C7: =IF(Project_Input!C8=0,"",Project_Input!C8) -> OT | D7: =IF(Project_Input!D8=0,"",Project_Input!D8) -> STOR BACKUP_ERG_1829388 | E7: =IF(Project_Input!E8=0,"",Project_Input!E8) ->  | F7: =IF(Project_Input!F8=0,"",Project_Input!F8) -> ERG | G7: =IF(Project_Input!L8<>"",Project_Input!L8,"") -> 1277515.267 | H7: -9454.198835
B8: 4 | C8: =IF(Project_Input!C9=0,"",Project_Input!C9) -> OT | D8: =IF(Project_Input!D9=0,"",Project_Input!D9) -> Zetron Combined ERG (opt1) - Sept 2024 | E8: =IF(Project_Input!E9=0,"",Project_Input!E9) ->  | F8: =IF(Project_Input!F9=0,"",Project_Input!F9) -> ERG | G8: =IF(Project_Input!L9<>"",Project_Input!L9,"") -> 4755912.369 | H8: 908780.6812
B9: 5 | C9: =IF(Project_Input!C10=0,"",Project_Input!C10) ->  | D9: =IF(Project_Input!D10=0,"",Project_Input!D10) ->  | E9: =IF(Project_Input!E10=0,"",Project_Input!E10) ->  | F9: =IF(Project_Input!F10=0,"",Project_Input!F10) ->  | G9: =IF(Project_Input!L10<>"",Project_Input!L10,"") ->  | H9: -0.01899694275
B10: 6 | C10: =IF(Project_Input!C11=0,"",Project_Input!C11) ->  | D10: =IF(Project_Input!D11=0,"",Project_Input!D11) ->  | E10: =IF(Project_Input!E11=0,"",Project_Input!E11) ->  | F10: =IF(Project_Input!F11=0,"",Project_Input!F11) ->  | G10: =IF(Project_Input!L11<>"",Project_Input!L11,"") ->  | H10: -0.01899694275
B11: 7 | C11: =IF(Project_Input!C12=0,"",Project_Input!C12) ->  | D11: =IF(Project_Input!D12=0,"",Project_Input!D12) ->  | E11: =IF(Project_Input!E12=0,"",Project_Input!E12) ->  | F11: =IF(Project_Input!F12=0,"",Project_Input!F12) ->  | G11: =IF(Project_Input!L12<>"",Project_Input!L12,"") ->  | H11: -0.01899694275
B12: 8 | C12: =IF(Project_Input!C13=0,"",Project_Input!C13) ->  | D12: =IF(Project_Input!D13=0,"",Project_Input!D13) ->  | E12: =IF(Project_Input!E13=0,"",Project_Input!E13) ->  | F12: =IF(Project_Input!F13=0,"",Project_Input!F13) ->  | G12: =IF(Project_Input!L13<>"",Project_Input!L13,"") ->  | H12: -0.01899694275
B13: 9 | C13: =IF(Project_Input!C14=0,"",Project_Input!C14) ->  | D13: =IF(Project_Input!D14=0,"",Project_Input!D14) ->  | E13: =IF(Project_Input!E14=0,"",Project_Input!E14) ->  | F13: =IF(Project_Input!F14=0,"",Project_Input!F14) ->  | G13: =IF(Project_Input!L14<>"",Project_Input!L14,"") ->  | H13: -0.01899694275
B14: 10 | C14: =IF(Project_Input!C15=0,"",Project_Input!C15) ->  | D14: =IF(Project_Input!D15=0,"",Project_Input!D15) ->  | E14: =IF(Project_Input!E15=0,"",Project_Input!E15) ->  | F14: =IF(Project_Input!F15=0,"",Project_Input!F15) ->  | G14: =IF(Project_Input!L15<>"",Project_Input!L15,"") ->  | H14: -0.01899694275
B15: 11 | C15: =IF(Project_Input!C16=0,"",Project_Input!C16) ->  | D15: =IF(Project_Input!D16=0,"",Project_Input!D16) ->  | E15: =IF(Project_Input!E16=0,"",Project_Input!E16) ->  | F15: =IF(Project_Input!F16=0,"",Project_Input!F16) ->  | G15: =IF(Project_Input!L16<>"",Project_Input!L16,"") ->  | H15: -0.01899694275
B16: 12 | C16: =IF(Project_Input!C17=0,"",Project_Input!C17) ->  | D16: =IF(Project_Input!D17=0,"",Project_Input!D17) ->  | E16: =IF(Project_Input!E17=0,"",Project_Input!E17) ->  | F16: =IF(Project_Input!F17=0,"",Project_Input!F17) ->  | G16: =IF(Project_Input!L17<>"",Project_Input!L17,"") ->  | H16: -0.01899694275
B17: 13 | C17: =IF(Project_Input!C18=0,"",Project_Input!C18) ->  | D17: =IF(Project_Input!D18=0,"",Project_Input!D18) ->  | E17: =IF(Project_Input!E18=0,"",Project_Input!E18) ->  | F17: =IF(Project_Input!F18=0,"",Project_Input!F18) ->  | G17: =IF(Project_Input!L18<>"",Project_Input!L18,"") ->  | H17: -0.01899694275
B18: 14 | C18: =IF(Project_Input!C19=0,"",Project_Input!C19) ->  | D18: =IF(Project_Input!D19=0,"",Project_Input!D19) ->  | E18: =IF(Project_Input!E19=0,"",Project_Input!E19) ->  | F18: =IF(Project_Input!F19=0,"",Project_Input!F19) ->  | G18: =IF(Project_Input!L19<>"",Project_Input!L19,"") ->  | H18: -0.01899694275
B19: 15 | C19: =IF(Project_Input!C20=0,"",Project_Input!C20) ->  | D19: =IF(Project_Input!D20=0,"",Project_Input!D20) ->  | E19: =IF(Project_Input!E20=0,"",Project_Input!E20) ->  | F19: =IF(Project_Input!F20=0,"",Project_Input!F20) ->  | G19: =IF(Project_Input!L20<>"",Project_Input!L20,"") ->  | H19: -0.01899694275
B20: 16 | C20: =IF(Project_Input!C21=0,"",Project_Input!C21) ->  | D20: =IF(Project_Input!D21=0,"",Project_Input!D21) ->  | E20: =IF(Project_Input!E21=0,"",Project_Input!E21) ->  | F20: =IF(Project_Input!F21=0,"",Project_Input!F21) ->  | G20: =IF(Project_Input!L21<>"",Project_Input!L21,"") ->  | H20: -0.01899694275
B21: 17 | C21: =IF(Project_Input!C22=0,"",Project_Input!C22) ->  | D21: =IF(Project_Input!D22=0,"",Project_Input!D22) ->  | E21: =IF(Project_Input!E22=0,"",Project_Input!E22) ->  | F21: =IF(Project_Input!F22=0,"",Project_Input!F22) ->  | G21: =IF(Project_Input!L22<>"",Project_Input!L22,"") ->  | H21: -0.01899694275
B22: 18 | C22: =IF(Project_Input!C23=0,"",Project_Input!C23) ->  | D22: =IF(Project_Input!D23=0,"",Project_Input!D23) ->  | E22: =IF(Project_Input!E23=0,"",Project_Input!E23) ->  | F22: =IF(Project_Input!F23=0,"",Project_Input!F23) ->  | G22: =IF(Project_Input!L23<>"",Project_Input!L23,"") ->  | H22: -0.01899694275
B23: 19 | C23: =IF(Project_Input!C24=0,"",Project_Input!C24) ->  | D23: =IF(Project_Input!D24=0,"",Project_Input!D24) ->  | E23: =IF(Project_Input!E24=0,"",Project_Input!E24) ->  | F23: =IF(Project_Input!F24=0,"",Project_Input!F24) ->  | G23: =IF(Project_Input!L24<>"",Project_Input!L24,"") ->  | H23: -0.01899694275
B24: 20 | C24: =IF(Project_Input!C25=0,"",Project_Input!C25) ->  | D24: =IF(Project_Input!D25=0,"",Project_Input!D25) ->  | E24: =IF(Project_Input!E25=0,"",Project_Input!E25) ->  | F24: =IF(Project_Input!F25=0,"",Project_Input!F25) ->  | G24: =IF(Project_Input!L25<>"",Project_Input!L25,"") ->  | H24: -0.01899694275
B25: 21 | C25: =IF(Project_Input!C26=0,"",Project_Input!C26) ->  | D25: =IF(Project_Input!D26=0,"",Project_Input!D26) ->  | E25: =IF(Project_Input!E26=0,"",Project_Input!E26) ->  | F25: =IF(Project_Input!F26=0,"",Project_Input!F26) ->  | G25: =IF(Project_Input!L26<>"",Project_Input!L26,"") ->  | H25: -0.01899694275
B26: 22 | C26: =IF(Project_Input!C27=0,"",Project_Input!C27) ->  | D26: =IF(Project_Input!D27=0,"",Project_Input!D27) ->  | E26: =IF(Project_Input!E27=0,"",Project_Input!E27) ->  | F26: =IF(Project_Input!F27=0,"",Project_Input!F27) ->  | G26: =IF(Project_Input!L27<>"",Project_Input!L27,"") ->  | H26: -0.01899694275
B27: 23 | C27: =IF(Project_Input!C28=0,"",Project_Input!C28) ->  | D27: =IF(Project_Input!D28=0,"",Project_Input!D28) ->  | E27: =IF(Project_Input!E28=0,"",Project_Input!E28) ->  | F27: =IF(Project_Input!F28=0,"",Project_Input!F28) ->  | G27: =IF(Project_Input!L28<>"",Project_Input!L28,"") ->  | H27: -0.01899694275
B28: 24 | C28: =IF(Project_Input!C29=0,"",Project_Input!C29) ->  | D28: =IF(Project_Input!D29=0,"",Project_Input!D29) ->  | E28: =IF(Project_Input!E29=0,"",Project_Input!E29) ->  | F28: =IF(Project_Input!F29=0,"",Project_Input!F29) ->  | G28: =IF(Project_Input!L29<>"",Project_Input!L29,"") ->  | H28: -0.01899694275
B29: 25 | C29: =IF(Project_Input!C30=0,"",Project_Input!C30) ->  | D29: =IF(Project_Input!D30=0,"",Project_Input!D30) ->  | E29: =IF(Project_Input!E30=0,"",Project_Input!E30) ->  | F29: =IF(Project_Input!F30=0,"",Project_Input!F30) ->  | G29: =IF(Project_Input!L30<>"",Project_Input!L30,"") ->  | H29: -0.01899694275
B30: 26 | C30: =IF(Project_Input!C31=0,"",Project_Input!C31) ->  | D30: =IF(Project_Input!D31=0,"",Project_Input!D31) ->  | E30: =IF(Project_Input!E31=0,"",Project_Input!E31) ->  | F30: =IF(Project_Input!F31=0,"",Project_Input!F31) ->  | G30: =IF(Project_Input!L31<>"",Project_Input!L31,"") ->  | H30: -0.01899694275
B31: 27 | C31: =IF(Project_Input!C32=0,"",Project_Input!C32) ->  | D31: =IF(Project_Input!D32=0,"",Project_Input!D32) ->  | E31: =IF(Project_Input!E32=0,"",Project_Input!E32) ->  | F31: =IF(Project_Input!F32=0,"",Project_Input!F32) ->  | G31: =IF(Project_Input!L32<>"",Project_Input!L32,"") ->  | H31: -0.01899694275
B32: 28 | C32: =IF(Project_Input!C33=0,"",Project_Input!C33) ->  | D32: =IF(Project_Input!D33=0,"",Project_Input!D33) ->  | E32: =IF(Project_Input!E33=0,"",Project_Input!E33) ->  | F32: =IF(Project_Input!F33=0,"",Project_Input!F33) ->  | G32: =IF(Project_Input!L33<>"",Project_Input!L33,"") ->  | H32: -0.01899694275
B33: 29 | C33: =IF(Project_Input!C34=0,"",Project_Input!C34) ->  | D33: =IF(Project_Input!D34=0,"",Project_Input!D34) ->  | E33: =IF(Project_Input!E34=0,"",Project_Input!E34) ->  | F33: =IF(Project_Input!F34=0,"",Project_Input!F34) ->  | G33: =IF(Project_Input!L34<>"",Project_Input!L34,"") ->  | H33: -0.01899694275
B34: 30 | C34: =IF(Project_Input!C35=0,"",Project_Input!C35) ->  | D34: =IF(Project_Input!D35=0,"",Project_Input!D35) ->  | E34: =IF(Project_Input!E35=0,"",Project_Input!E35) ->  | F34: =IF(Project_Input!F35=0,"",Project_Input!F35) ->  | G34: =IF(Project_Input!L35<>"",Project_Input!L35,"") ->  | H34: -0.01899694275
B35: 31 | C35: =IF(Project_Input!C36=0,"",Project_Input!C36) ->  | D35: =IF(Project_Input!D36=0,"",Project_Input!D36) ->  | E35: =IF(Project_Input!E36=0,"",Project_Input!E36) ->  | F35: =IF(Project_Input!F36=0,"",Project_Input!F36) ->  | G35: =IF(Project_Input!L36<>"",Project_Input!L36,"") ->  | H35: -0.01899694275
B36: 32 | C36: =IF(Project_Input!C37=0,"",Project_Input!C37) ->  | D36: =IF(Project_Input!D37=0,"",Project_Input!D37) ->  | E36: =IF(Project_Input!E37=0,"",Project_Input!E37) ->  | F36: =IF(Project_Input!F37=0,"",Project_Input!F37) ->  | G36: =IF(Project_Input!L37<>"",Project_Input!L37,"") ->  | H36: -0.01899694275
B37: 33 | C37: =IF(Project_Input!C38=0,"",Project_Input!C38) ->  | D37: =IF(Project_Input!D38=0,"",Project_Input!D38) ->  | E37: =IF(Project_Input!E38=0,"",Project_Input!E38) ->  | F37: =IF(Project_Input!F38=0,"",Project_Input!F38) ->  | G37: =IF(Project_Input!L38<>"",Project_Input!L38,"") ->  | H37: -0.01899694275
B38: 34 | C38: =IF(Project_Input!C39=0,"",Project_Input!C39) ->  | D38: =IF(Project_Input!D39=0,"",Project_Input!D39) ->  | E38: =IF(Project_Input!E39=0,"",Project_Input!E39) ->  | F38: =IF(Project_Input!F39=0,"",Project_Input!F39) ->  | G38: =IF(Project_Input!L39<>"",Project_Input!L39,"") ->  | H38: -0.01899694275
B39: 35 | C39: =IF(Project_Input!C40=0,"",Project_Input!C40) ->  | D39: =IF(Project_Input!D40=0,"",Project_Input!D40) ->  | E39: =IF(Project_Input!E40=0,"",Project_Input!E40) ->  | F39: =IF(Project_Input!F40=0,"",Project_Input!F40) ->  | G39: =IF(Project_Input!L40<>"",Project_Input!L40,"") ->  | H39: -0.01899694275
B40: 36 | C40: =IF(Project_Input!C41=0,"",Project_Input!C41) ->  | D40: =IF(Project_Input!D41=0,"",Project_Input!D41) ->  | E40: =IF(Project_Input!E41=0,"",Project_Input!E41) ->  | F40: =IF(Project_Input!F41=0,"",Project_Input!F41) ->  | G40: =IF(Project_Input!L41<>"",Project_Input!L41,"") -> 
B41: 37 | C41: =IF(Project_Input!C42=0,"",Project_Input!C42) ->  | D41: =IF(Project_Input!D42=0,"",Project_Input!D42) ->  | E41: =IF(Project_Input!E42=0,"",Project_Input!E42) ->  | F41: =IF(Project_Input!F42=0,"",Project_Input!F42) ->  | G41: =IF(Project_Input!L42<>"",Project_Input!L42,"") -> 

Sheet Sensitivity
B2: NPV (Base Case) | E2: =NPV_1 -> -115465.9747 | N2: Base Case)
R3: 2024-05-01 | T3: NPV | U3: Benefit | V3: VCR | W3: Discount | Y3: Failure rate | AA3: Benefit
B4: NPV Sensitivity Analysis | F4: Project Index | G4: =Index_1 -> 2 | I4: Project Name | J4: =DCF!C4 -> Server & Workstation_ERG_1829387 | T4: 0.035 | W4: 0.025 | X4: 0.045 | Y4: 1.25 | Z4: 0.75 | AA4: 1.25 | AB4: 0.75
D5: WACC Sensitivity | P5: 1 | R5: OT Server & Workstation Replacement
D6: =Hidden!C14 -> 0.01 | E6: =Hidden!D14 -> 0.015 | F6: =Hidden!E14 -> 0.02 | G6: =Hidden!F14 -> 0.025 | H6: =Hidden!G14 -> 0.03 | I6: =Hidden!H14 -> 0.035 | J6: =Hidden!I14 -> 0.04 | K6: =Hidden!J14 -> 0.045 | L6: =Hidden!K14 -> 0.05 | M6: =Hidden!L14 -> 0.055 | N6: =Hidden!M14 -> 0.06 | P6: 2 | Q6: OT | R6: Server & Workstation_EGX_7862124 | S6: EGX | T6: -119075.3506 | U6: 488363.8746 | V6: 103820 | W6: 60127.33364 | X6: -275481.6023 | Y6: 65313.11091 | Z6: -303463.8121 | AA6: 999044.1237 | AB6: -1015105.28
B7: Benefit Sensitivity | C7: =Hidden!B15 -> 1.25 | D7: =Hidden!C15 -> 1790066.857 | E7: =Hidden!D15 -> 1612368.862 | F7: =Hidden!E15 -> 1445416.315 | G7: =Hidden!F15 -> 1288550.097 | H7: =Hidden!G15 -> 1141154.365 | I7: =Hidden!H15 -> 1002653.5 | J7: =Hidden!I15 -> 872509.2817 | K7: =Hidden!J15 -> 750218.2765 | L7: =Hidden!K15 -> 635309.4187 | M7: =Hidden!L15 -> 527341.7741 | N7: =Hidden!M15 -> 425902.4686 | P7: 3 | Q7: OT | R7: Server & Workstation_ERG_1829387 | S7: ERG | T7: -115465.9747 | U7: 488363.8746 | V7: 103820 | W7: 63855.37688 | X7: -271985.4037 | Y7: 68922.48679 | Z7: -299854.4362 | AA7: 1002653.5 | AB7: -1011495.904
C8: =Hidden!B16 -> 1.2 | D8: =Hidden!C16 -> 1482820.11 | E8: =Hidden!D16 -> 1319156.133 | F8: =Hidden!E16 -> 1165497.163 | G8: =Hidden!F16 -> 1021227.988 | H8: =Hidden!G16 -> 885773.805 | I8: =Hidden!H16 -> 758597.3666 | J8: =Hidden!I16 -> 639196.3468 | K8: =Hidden!J16 -> 527100.9014 | L8: =Hidden!K16 -> 421871.4119 | M8: =Hidden!L16 -> 323096.3971 | N8: =Hidden!M16 -> 230390.579 | P8: 4
C9: =Hidden!B17 -> 1.15 | D9: =Hidden!C17 -> 1188998.444 | E9: =Hidden!D17 -> 1038754.395 | F9: =Hidden!E17 -> 897807.3399 | G9: =Hidden!F17 -> 765584.0524 | H9: =Hidden!G17 -> 641548.9684 | I9: =Hidden!H17 -> 525201.5318 | J9: =Hidden!I17 -> 416073.7376 | K9: =Hidden!J17 -> 313727.8597 | L9: =Hidden!K17 -> 217754.349 | M9: =Hidden!L17 -> 127769.8865 | N9: =Hidden!M17 -> 43415.58126 | P9: 5 | R9: OT SAN & Backup Replacement
C10: =Hidden!B18 -> 1.1 | D10: =Hidden!C18 -> 908042.4804 | E10: =Hidden!D18 -> 770629.8556 | F10: =Hidden!E18 -> 641837.2908 | G10: =Hidden!F18 -> 521131.6989 | H10: =Hidden!G18 -> 408015.033 | I10: =Hidden!H18 -> 302021.816 | J10: =Hidden!I18 -> 202716.8569 | K10: =Hidden!J18 -> 109693.1376 | L10: =Hidden!K18 -> 22569.85725 | M10: =Hidden!L18 -> -59009.37728 | N10: =Hidden!M18 -> -135378.2285 | P10: 6 | Q10: OT | R10: STOR BACKUP_EGX_7862125 | S10: EGX | T10: -11928.48066 | U10: 452950.527 | V10: 207640 | W10: -29869.55998 | X10: 1207.959425 | Y10: 327174.09 | Z10: -351031.0513 | AA10: 1296301.202 | AB10: -928648.3249
C11: =Hidden!B19 -> 1.05 | D11: =Hidden!C19 -> 639392.8411 | E11: =Hidden!D19 -> 514248.7247 | F11: =Hidden!E19 -> 397077.4602 | G11: =Hidden!F19 -> 287384.3373 | H11: =Hidden!G19 -> 184707.1769 | I11: =Hidden!H19 -> 88614.04021 | J11: =Hidden!I19 -> -1298.891889 | K11: =Hidden!J19 -> -85409.27895 | L11: =Hidden!K19 -> -164070.436 | M11: =Hidden!L19 -> -237613.0136 | N11: =Hidden!M19 -> -306346.5542 | P11: 7 | Q11: OT | R11: STOR BACKUP_ERG_1829388 | S11: ERG | T11: -9454.198835 | U11: 452950.527 | V11: 207640 | W11: -27186.81977 | X11: 3494.939153 | Y11: 329648.3718 | Z11: -348556.7695 | AA11: 1298775.484 | AB11: -926174.043
C12: =Hidden!B20 -> 1 | D12: =Hidden!C20 -> 382490.1475 | E12: =Hidden!D20 -> 269077.2105 | F12: =Hidden!E20 -> 163018.2928 | G12: =Hidden!F20 -> 63855.37688 | H12: =Hidden!G20 -> -28839.42147 | I12: =Hidden!H20 -> -115465.9747 | J12: =Hidden!I20 -> -196398.1059 | K12: =Hidden!J20 -> -271985.4037 | L12: =Hidden!K20 -> -342554.9033 | M12: =Hidden!L20 -> -408412.6418 | N12: =Hidden!M20 -> -469845.0995 | P12: 8
C13: =Hidden!B21 -> 0.95 | D13: =Hidden!C21 -> 136775.0213 | E13: =Hidden!D21 -> 34581.52187 | F13: =Hidden!E21 -> -60849.76684 | G13: =Hidden!F21 -> -149941.7728 | H13: =Hidden!G21 -> -233089.5841 | I13: =Hidden!H21 -> -310662.4079 | J13: =Hidden!I21 -> -383005.3819 | K13: =Hidden!J21 -> -450441.2506 | L13: =Hidden!K21 -> -513271.9175 | M13: =Hidden!L21 -> -571779.8814 | N13: =Hidden!M21 -> -626229.5683 | P13: 9 | R13: OT Monitoring Replacement
C14: =Hidden!B22 -> 0.9 | D14: =Hidden!C22 -> -98311.91588 | E14: =Hidden!D22 -> -189772.1326 | F14: =Hidden!E22 -> -275036.2741 | G14: =Hidden!F22 -> -354493.7022 | H14: =Hidden!G22 -> -428508.1327 | I14: =Hidden!H22 -> -497419.4383 | J14: =Hidden!I22 -> -561545.3168 | K14: =Hidden!J22 -> -621182.8336 | L14: =Hidden!K22 -> -676609.8511 | M14: =Hidden!L22 -> -728086.3519 | N14: =Hidden!M22 -> -775855.6644 | P14: 10 | Q14: OT | R14: MONITORING_EGX_7862123 | S14: EGX | T14: 700533.3563 | U14: 1027135.289 | V14: 519100 | W14: 652123.1961 | X14: 734479.6146 | Y14: 1708059.745 | Z14: -306993.0324 | AA14: 3901611.569 | AB14: -1498367.42
C15: =Hidden!B23 -> 0.85 | D15: =Hidden!C23 -> -323330.0424 | E15: =Hidden!D23 -> -404517.5441 | F15: =Hidden!E23 -> -480050.7844 | G15: =Hidden!F23 -> -550287.002 | H15: =Hidden!G23 -> -615559.889 | I15: =Hidden!H23 -> -676181.2452 | J15: =Hidden!I23 -> -732442.5075 | K15: =Hidden!J23 -> -784616.1664 | L15: =Hidden!K23 -> -832957.0768 | M15: =Hidden!L23 -> -877703.6726 | N15: =Hidden!M23 -> -919079.0916 | P15: 11 | Q15: OT | R15: MONITORING_ERG_1829386 | S15: ERG | T15: 735712.2511 | U15: 1027135.289 | V15: 519100 | W15: 690352.7183 | X15: 766921.2926 | Y15: 1743238.64 | Z15: -271814.1376 | AA15: 3936790.464 | AB15: -1463188.525
C16: =Hidden!B24 -> 0.8 | D16: =Hidden!C24 -> -538838.7366 | E16: =Hidden!D24 -> -610188.5039 | F16: =Hidden!E24 -> -676402.8531 | G16: =Hidden!F24 -> -737808.2627 | H16: =Hidden!G24 -> -794709.6749 | I16: =Hidden!H24 -> -847392.0075 | J16: =Hidden!I24 -> -896121.551 | K16: =Hidden!J24 -> -941147.2631 | L16: =Hidden!K24 -> -982701.9674 | M16: =Hidden!L24 -> -1021003.463 | N16: =Hidden!M24 -> -1056255.554 | P16: 12
C17: =Hidden!B25 -> 0.75 | D17: =Hidden!C25 -> -745397.377 | E17: =Hidden!D25 -> -807318.8033 | F17: =Hidden!E25 -> -864602.0356 | G17: =Hidden!F25 -> -917544.0747 | H17: =Hidden!G25 -> -966422.3122 | I17: =Hidden!H25 -> -1011495.904 | J17: =Hidden!I25 -> -1053007.044 | K17: =Hidden!J25 -> -1091182.138 | L17: =Hidden!K25 -> -1126232.895 | M17: =Hidden!L25 -> -1158357.342 | N17: =Hidden!M25 -> -1187740.755 | P17: 13 | R17: OT Infrastructure Augmentation
P18: 14 | Q18: OT | R18: OT Infrastructure Augmentation_EGX_7780410 | S18: EGX | T18: 30593.50353 | U18: 308935.7929 | V18: 207640 | W18: 19757.34129 | X18: 38022.54102 | Y18: 398369.6912 | Z18: -337182.6841 | AA18: 1165586.723 | AB18: -708903.9426
P19: 15 | Q19: OT | R19: OT Infrastructure Augmentation_ERG_1781885 | S19: ERG | T19: 111201.1383 | U19: 308935.7929 | V19: 207640 | W19: 106934.4938 | X19: 112727.6274 | Y19: 478977.3259 | Z19: -256575.0494 | AA19: 1246194.358 | AB19: -628296.3079

Sheet Hidden
B2: Model General Input
B3: Model Start Year | C3: 2023 | D3: Year
B4: Program Start Year | C4: 2026 | D4: Year | F4: 2023-11-01 | G4: 3.5
B5: Pre-Tax Real WACC | C5: 0.035 | D5: % | F5: 2023-05-01 | G5: 2.73
B6: Benefit Sensitivity | C6: 1
B7: VCR | C7: 51.91 | D7: $/KWh
B8: Carbon Conversion Rate | C8: 0.0085 | D8: Ton/MWh
B9: Carbon Price | C9: 30 | D9: $/Ton
B12: NPV | C12: =NPV_1 -> -115465.9747
B13: Sensitivity Table | C13: 1 | D13: =C13+1 -> 2 | E13: =D13+1 -> 3 | F13: 4 | G13: 5 | H13: 6 | I13: 7 | J13: 8 | K13: 9 | L13: 10 | M13: 11
B14: =C12 -> -115465.9747 | C14: =D14-0.5% -> 0.01 | D14: 0.015 | E14: 0.02 | F14: 0.025 | G14: =H14-0.5% -> 0.03 | H14: 0.035 | I14: =H14+0.5% -> 0.04 | J14: =I14+0.5% -> 0.045 | K14: =J14+0.5% -> 0.05 | L14: 0.055 | M14: 0.06
A15: 1 | B15: =B16+5% -> 1.25 | C15: 1790066.857 | D15: 1612368.862 | E15: 1445416.315 | F15: 1288550.097 | G15: 1141154.365 | H15: 1002653.5 | I15: 872509.2817 | J15: 750218.2765 | K15: 635309.4187 | L15: 527341.7741 | M15: 425902.4686
A16: =A15+1 -> 2 | B16: 1.2 | C16: 1482820.11 | D16: 1319156.133 | E16: 1165497.163 | F16: 1021227.988 | G16: 885773.805 | H16: 758597.3666 | I16: 639196.3468 | J16: 527100.9014 | K16: 421871.4119 | L16: 323096.3971 | M16: 230390.579
A17: =A16+1 -> 3 | B17: 1.15 | C17: 1188998.444 | D17: 1038754.395 | E17: 897807.3399 | F17: 765584.0524 | G17: 641548.9684 | H17: 525201.5318 | I17: 416073.7376 | J17: 313727.8597 | K17: 217754.349 | L17: 127769.8865 | M17: 43415.58126
A18: 4 | B18: 1.1 | C18: 908042.4804 | D18: 770629.8556 | E18: 641837.2908 | F18: 521131.6989 | G18: 408015.033 | H18: 302021.816 | I18: 202716.8569 | J18: 109693.1376 | K18: 22569.85725 | L18: -59009.37728 | M18: -135378.2285
A19: 5 | B19: =B20+5% -> 1.05 | C19: 639392.8411 | D19: 514248.7247 | E19: 397077.4602 | F19: 287384.3373 | G19: 184707.1769 | H19: 88614.04021 | I19: -1298.891889 | J19: -85409.27895 | K19: -164070.436 | L19: -237613.0136 | M19: -306346.5542
A20: 6 | B20: 1 | C20: 382490.1475 | D20: 269077.2105 | E20: 163018.2928 | F20: 63855.37688 | G20: -28839.42147 | H20: -115465.9747 | I20: -196398.1059 | J20: -271985.4037 | K20: -342554.9033 | L20: -408412.6418 | M20: -469845.0995
A21: 7 | B21: =B20-5% -> 0.95 | C21: 136775.0213 | D21: 34581.52187 | E21: -60849.76684 | F21: -149941.7728 | G21: -233089.5841 | H21: -310662.4079 | I21: -383005.3819 | J21: -450441.2506 | K21: -513271.9175 | L21: -571779.8814 | M21: -626229.5683
A22: 8 | B22: =B21-5% -> 0.9 | C22: -98311.91588 | D22: -189772.1326 | E22: -275036.2741 | F22: -354493.7022 | G22: -428508.1327 | H22: -497419.4383 | I22: -561545.3168 | J22: -621182.8336 | K22: -676609.8511 | L22: -728086.3519 | M22: -775855.6644
A23: =A22+1 -> 9 | B23: 0.85 | C23: -323330.0424 | D23: -404517.5441 | E23: -480050.7844 | F23: -550287.002 | G23: -615559.889 | H23: -676181.2452 | I23: -732442.5075 | J23: -784616.1664 | K23: -832957.0768 | L23: -877703.6726 | M23: -919079.0916
A24: 10 | B24: 0.8 | C24: -538838.7366 | D24: -610188.5039 | E24: -676402.8531 | F24: -737808.2627 | G24: -794709.6749 | H24: -847392.0075 | I24: -896121.551 | J24: -941147.2631 | K24: -982701.9674 | L24: -1021003.463 | M24: -1056255.554
A25: 11 | B25: 0.75 | C25: -745397.377 | D25: -807318.8033 | E25: -864602.0356 | F25: -917544.0747 | G25: -966422.3122 | H25: -1011495.904 | I25: -1053007.044 | J25: -1091182.138 | K25: -1126232.895 | L25: -1158357.342 | M25: -1187740.755
B34: Yes
B35: No
B38: 1
B39: =B38+1 -> 2
B40: =B39+1 -> 3
B41: 4
B42: 5
B43: 6
B44: 7
B45: 8
B46: 9
B47: 10
B48: 11
B49: 12
B50: 13
B51: 14
B52: 15
B53: 16
B54: 17
B55: 18
B56: 19
B57: 20
B58: 21
B59: 22
B60: 23
B61: 24
B62: 25
B63: 26
B64: 27
B65: 28
B66: 29
B67: 30
B68: 31
B69: 32
B70: 33
B71: 34
B72: 35
